Workbook

Sheet Topics
A1: Topics | B1: Sheet Link
A2: Sampling Distribution of Xbar1 - Xbar2 | B2: SDofDiffXbars!A1
A3: Confidence Interval for Difference Between 2 Population Means, Sigma1 and Sigma2 Known: Z | B3: CI Sigma Known, z'!A1
A4: Hypothesis Testing for Difference Between 2 Population Means, Sigma1 and Sigma2 Known: Z | B4: HT Sigma Known, z'!A1
A5: Confidence Interval for Difference Between 2 Population Means, Sigma1 and Sigma2 NOT Known: T | B5: CI Sigma NOT Known, t'!A1
A6: Hypothesis Testing for Difference Between 2 Population Means, Sigma1 and Sigma2 NOT Known: T | B6: HT Sigma NOT Known, t'!A1
A7: Matched Samples | B7: HT & CI Matched Sample, t'!A1
A8: Completely Randomized Design | B8: CRD(1)'!A1
A9: Analysis of Variance ANOVA | B9: ANOVA-Long'!A1
A21: Whenever possible, equal sample size n1 = n2, are recommended.
A22: Note about this:
A23: http://www.theanalysisfactor.com/when-unequal-sample-sizes-are-and-are-not-a-problem-in-anova/

Sheet SDofDiffXbars
A1: Town 1 | D1: N | E1: =COUNT(A2:A6) -> 5 | I1: Town 2 | L1: N | M1: =COUNT(I2:I6) -> 5 | Q1: Total Differences = | S1: =E3*M3 -> 100 | Y1: Max | Z1: =MAX(S5:S104,W5:W29) -> 0 | AC1: Sampling Distribution of Xbar1-Xbar2
A2: 75000 | D2: n1 | E2: 2 | I2: 43500 | L2: n2 | M2: 2 | Q2: Sample Differences: | U2: Pop Differences: | Y2: Min | Z2: =MIN(S5:S104,W5:W29) -> 0
A3: 54800 | D3: Combinations | E3: =COMBIN(E1,E2) -> 10 | F3: All Possible Samples | I3: 65000 | L3: Combinations | M3: =COMBIN(M1,M2) -> 10 | N3: All Possible Samples
A4: 18500 | I4: 19000 | Q4: Town 1 | R4: Town 2 | S4: Difference | U4: Town 1 | V4: Town 2 | W4: Difference | Y4: Lower | Z4: Upper | AA4: Label | AB4: Pop Frequency | AC4: Sample Frequency
A5: 24250 | C5: SP 1 | D5: SP 2 | E5: Xbar | I5: 25000 | K5: SP 1 | L5: SP 2 | M5: Xbar | Q5: =INDEX($E$6:$E$15,INT((ROWS(Q$5:Q5)-1)/10)+1) -> 64900 | R5: =INDEX($M$6:$M$15,MOD(ROWS(R$5:R5)-1,10)+1) -> 54250 | U5: =INDEX($A$2:$A$6,INT((ROWS(U$5:U5)-1)/5)+1) -> 75000 | V5: =INDEX($I$2:$I$6,MOD(ROWS(V$5:V5)-1,5)+1) -> 43500 | Y5: -60000 | Z5: =Y5+5000 -> -55000 | AA5: =TEXT(Y5,"0,K")&" up to "&TEXT(Z5,"0,K") -> -60K up to -55K | AB5: =COUNTIFS($W$5:$W$29,">="&Y5,$W$5:$W$29,"<"&Z5) -> 0 | AC5: =COUNTIFS($S$5:$S$104,">="&Y5,$S$5:$S$104,"<"&Z5) -> 0
A6: 29500 | C6: =$A$2 -> 75000 | D6: =A3 -> 54800 | E6: =AVERAGE(C6:D6) -> 64900 | I6: 34500 | K6: =$I$2 -> 43500 | L6: =I3 -> 65000 | M6: =AVERAGE(K6:L6) -> 54250 | Q6: =INDEX($E$6:$E$15,INT((ROWS(Q$5:Q6)-1)/10)+1) -> 64900 | R6: =INDEX($M$6:$M$15,MOD(ROWS(R$5:R6)-1,10)+1) -> 31250 | U6: =INDEX($A$2:$A$6,INT((ROWS(U$5:U6)-1)/5)+1) -> 75000 | V6: =INDEX($I$2:$I$6,MOD(ROWS(V$5:V6)-1,5)+1) -> 65000 | Y6: =Z5 -> -55000 | Z6: =Y6+5000 -> -50000 | AA6: =TEXT(Y6,"0,K")&" up to "&TEXT(Z6,"0,K") -> -55K up to -50K | AB6: =COUNTIFS($W$5:$W$29,">="&Y6,$W$5:$W$29,"<"&Z6) -> 0 | AC6: =COUNTIFS($S$5:$S$104,">="&Y6,$S$5:$S$104,"<"&Z6) -> 0
C7: 75000 | D7: 18500 | E7: =AVERAGE(C7:D7) -> 46750 | K7: 43500 | L7: 19000 | M7: 31250 | Q7: =INDEX($E$6:$E$15,INT((ROWS(Q$5:Q7)-1)/10)+1) -> 64900 | R7: =INDEX($M$6:$M$15,MOD(ROWS(R$5:R7)-1,10)+1) -> 34250 | U7: =INDEX($A$2:$A$6,INT((ROWS(U$5:U7)-1)/5)+1) -> 75000 | V7: =INDEX($I$2:$I$6,MOD(ROWS(V$5:V7)-1,5)+1) -> 19000
C8: 75000 | D8: 24250 | E8: 49625 | K8: 43500 | L8: 25000 | M8: 34250 | Q8: =INDEX($E$6:$E$15,INT((ROWS(Q$5:Q8)-1)/10)+1) -> 64900 | R8: =INDEX($M$6:$M$15,MOD(ROWS(R$5:R8)-1,10)+1) -> 39000 | U8: =INDEX($A$2:$A$6,INT((ROWS(U$5:U8)-1)/5)+1) -> 75000 | V8: =INDEX($I$2:$I$6,MOD(ROWS(V$5:V8)-1,5)+1) -> 25000
C9: 75000 | D9: 29500 | E9: 52250 | K9: 43500 | L9: 34500 | M9: 39000 | Q9: =INDEX($E$6:$E$15,INT((ROWS(Q$5:Q9)-1)/10)+1) -> 64900 | R9: =INDEX($M$6:$M$15,MOD(ROWS(R$5:R9)-1,10)+1) -> 42000 | U9: =INDEX($A$2:$A$6,INT((ROWS(U$5:U9)-1)/5)+1) -> 75000 | V9: =INDEX($I$2:$I$6,MOD(ROWS(V$5:V9)-1,5)+1) -> 34500
C10: =$A$3 -> 54800 | D10: =A4 -> 18500 | E10: 36650 | K10: =$I$3 -> 65000 | L10: =I4 -> 19000 | M10: 42000 | Q10: =INDEX($E$6:$E$15,INT((ROWS(Q$5:Q10)-1)/10)+1) -> 64900 | R10: =INDEX($M$6:$M$15,MOD(ROWS(R$5:R10)-1,10)+1) -> 45000 | U10: =INDEX($A$2:$A$6,INT((ROWS(U$5:U10)-1)/5)+1) -> 54800 | V10: =INDEX($I$2:$I$6,MOD(ROWS(V$5:V10)-1,5)+1) -> 43500
C11: 54800 | D11: 24250 | E11: 39525 | K11: 65000 | L11: 25000 | M11: 45000 | Q11: =INDEX($E$6:$E$15,INT((ROWS(Q$5:Q11)-1)/10)+1) -> 64900 | R11: =INDEX($M$6:$M$15,MOD(ROWS(R$5:R11)-1,10)+1) -> 49750 | U11: =INDEX($A$2:$A$6,INT((ROWS(U$5:U11)-1)/5)+1) -> 54800 | V11: =INDEX($I$2:$I$6,MOD(ROWS(V$5:V11)-1,5)+1) -> 65000
C12: 54800 | D12: 29500 | E12: 42150 | K12: 65000 | L12: 34500 | M12: 49750 | Q12: =INDEX($E$6:$E$15,INT((ROWS(Q$5:Q12)-1)/10)+1) -> 64900 | R12: =INDEX($M$6:$M$15,MOD(ROWS(R$5:R12)-1,10)+1) -> 22000 | U12: =INDEX($A$2:$A$6,INT((ROWS(U$5:U12)-1)/5)+1) -> 54800 | V12: =INDEX($I$2:$I$6,MOD(ROWS(V$5:V12)-1,5)+1) -> 19000
C13: =$A$4 -> 18500 | D13: =A5 -> 24250 | E13: 21375 | K13: =$I$4 -> 19000 | L13: =I5 -> 25000 | M13: 22000 | Q13: =INDEX($E$6:$E$15,INT((ROWS(Q$5:Q13)-1)/10)+1) -> 64900 | R13: =INDEX($M$6:$M$15,MOD(ROWS(R$5:R13)-1,10)+1) -> 26750 | U13: =INDEX($A$2:$A$6,INT((ROWS(U$5:U13)-1)/5)+1) -> 54800 | V13: =INDEX($I$2:$I$6,MOD(ROWS(V$5:V13)-1,5)+1) -> 25000
C14: 18500 | D14: 29500 | E14: 24000 | K14: 19000 | L14: 34500 | M14: 26750 | Q14: =INDEX($E$6:$E$15,INT((ROWS(Q$5:Q14)-1)/10)+1) -> 64900 | R14: =INDEX($M$6:$M$15,MOD(ROWS(R$5:R14)-1,10)+1) -> 29750 | U14: =INDEX($A$2:$A$6,INT((ROWS(U$5:U14)-1)/5)+1) -> 54800 | V14: =INDEX($I$2:$I$6,MOD(ROWS(V$5:V14)-1,5)+1) -> 34500
C15: =A5 -> 24250 | D15: =A6 -> 29500 | E15: 26875 | K15: =I5 -> 25000 | L15: =I6 -> 34500 | M15: 29750 | Q15: =INDEX($E$6:$E$15,INT((ROWS(Q$5:Q15)-1)/10)+1) -> 46750 | R15: =INDEX($M$6:$M$15,MOD(ROWS(R$5:R15)-1,10)+1) -> 54250 | U15: =INDEX($A$2:$A$6,INT((ROWS(U$5:U15)-1)/5)+1) -> 18500 | V15: =INDEX($I$2:$I$6,MOD(ROWS(V$5:V15)-1,5)+1) -> 43500
Q16: =INDEX($E$6:$E$15,INT((ROWS(Q$5:Q16)-1)/10)+1) -> 46750 | R16: =INDEX($M$6:$M$15,MOD(ROWS(R$5:R16)-1,10)+1) -> 31250 | U16: =INDEX($A$2:$A$6,INT((ROWS(U$5:U16)-1)/5)+1) -> 18500 | V16: =INDEX($I$2:$I$6,MOD(ROWS(V$5:V16)-1,5)+1) -> 65000
D17: Mean of all Means = μXbar = | F17: Expected Value (Xbar) = E(Xbar) | L17: Mean of all Means = μXbar = | M17: =AVERAGE(M6:M15) -> 37400 | N17: Expected Value (Xbar) = E(Xbar) | Q17: =INDEX($E$6:$E$15,INT((ROWS(Q$5:Q17)-1)/10)+1) -> 46750 | R17: =INDEX($M$6:$M$15,MOD(ROWS(R$5:R17)-1,10)+1) -> 34250 | U17: =INDEX($A$2:$A$6,INT((ROWS(U$5:U17)-1)/5)+1) -> 18500 | V17: =INDEX($I$2:$I$6,MOD(ROWS(V$5:V17)-1,5)+1) -> 19000
D18: Pop Mean = μ = | L18: Pop Mean = μ = | M18: =AVERAGE(I2:I6) -> 37400 | Q18: =INDEX($E$6:$E$15,INT((ROWS(Q$5:Q18)-1)/10)+1) -> 46750 | R18: =INDEX($M$6:$M$15,MOD(ROWS(R$5:R18)-1,10)+1) -> 39000 | U18: =INDEX($A$2:$A$6,INT((ROWS(U$5:U18)-1)/5)+1) -> 18500 | V18: =INDEX($I$2:$I$6,MOD(ROWS(V$5:V18)-1,5)+1) -> 25000
G19: n/N | O19: n/N | Q19: =INDEX($E$6:$E$15,INT((ROWS(Q$5:Q19)-1)/10)+1) -> 46750 | R19: =INDEX($M$6:$M$15,MOD(ROWS(R$5:R19)-1,10)+1) -> 42000 | U19: =INDEX($A$2:$A$6,INT((ROWS(U$5:U19)-1)/5)+1) -> 18500 | V19: =INDEX($I$2:$I$6,MOD(ROWS(V$5:V19)-1,5)+1) -> 34500
D20: Pop SD = Sigma = | L20: Pop SD = Sigma = | M20: =_xlfn.STDEV.P(I2:I6) -> 16122.65487 | O20: =M2/M1 -> 0.4 | Q20: =INDEX($E$6:$E$15,INT((ROWS(Q$5:Q20)-1)/10)+1) -> 46750 | R20: =INDEX($M$6:$M$15,MOD(ROWS(R$5:R20)-1,10)+1) -> 45000 | U20: =INDEX($A$2:$A$6,INT((ROWS(U$5:U20)-1)/5)+1) -> 24250 | V20: =INDEX($I$2:$I$6,MOD(ROWS(V$5:V20)-1,5)+1) -> 43500
D21: Standard Error of SDofXbar = | F21: < Pop cuz it lists ALL possible samples | L21: Standard Error of SDofXbar = | M21: =_xlfn.STDEV.P(M6:M15) -> 9873.069432 | N21: < Pop cuz it lists ALL possible samples | Q21: =INDEX($E$6:$E$15,INT((ROWS(Q$5:Q21)-1)/10)+1) -> 46750 | R21: =INDEX($M$6:$M$15,MOD(ROWS(R$5:R21)-1,10)+1) -> 49750 | U21: =INDEX($A$2:$A$6,INT((ROWS(U$5:U21)-1)/5)+1) -> 24250 | V21: =INDEX($I$2:$I$6,MOD(ROWS(V$5:V21)-1,5)+1) -> 65000
A22: Standard Error = Sigma/SQRT(n)*SQRT((N-n)/(N-1)) | I22: Standard Error = Sigma/SQRT(n)*SQRT((N-n)/(N-1)) | M22: =M20/SQRT(M2)*SQRT((M1-M2)/(M1-1)) -> 9873.069432 | Q22: =INDEX($E$6:$E$15,INT((ROWS(Q$5:Q22)-1)/10)+1) -> 46750 | R22: =INDEX($M$6:$M$15,MOD(ROWS(R$5:R22)-1,10)+1) -> 22000 | U22: =INDEX($A$2:$A$6,INT((ROWS(U$5:U22)-1)/5)+1) -> 24250 | V22: =INDEX($I$2:$I$6,MOD(ROWS(V$5:V22)-1,5)+1) -> 19000
Q23: =INDEX($E$6:$E$15,INT((ROWS(Q$5:Q23)-1)/10)+1) -> 46750 | R23: =INDEX($M$6:$M$15,MOD(ROWS(R$5:R23)-1,10)+1) -> 26750 | U23: =INDEX($A$2:$A$6,INT((ROWS(U$5:U23)-1)/5)+1) -> 24250 | V23: =INDEX($I$2:$I$6,MOD(ROWS(V$5:V23)-1,5)+1) -> 25000
D24: Pop Variance = Sigma^2 = s21 | L24: Pop Variance = Sigma^2 = s22 | M24: =M20^2 -> 259940000 | Q24: =INDEX($E$6:$E$15,INT((ROWS(Q$5:Q24)-1)/10)+1) -> 46750 | R24: =INDEX($M$6:$M$15,MOD(ROWS(R$5:R24)-1,10)+1) -> 29750 | U24: =INDEX($A$2:$A$6,INT((ROWS(U$5:U24)-1)/5)+1) -> 24250 | V24: =INDEX($I$2:$I$6,MOD(ROWS(V$5:V24)-1,5)+1) -> 34500
Q25: =INDEX($E$6:$E$15,INT((ROWS(Q$5:Q25)-1)/10)+1) -> 49625 | R25: =INDEX($M$6:$M$15,MOD(ROWS(R$5:R25)-1,10)+1) -> 54250 | U25: =INDEX($A$2:$A$6,INT((ROWS(U$5:U25)-1)/5)+1) -> 29500 | V25: =INDEX($I$2:$I$6,MOD(ROWS(V$5:V25)-1,5)+1) -> 43500
A26: Similar to what we did in video: | E26: Excel 2013 Statistical Analysis #43: Simple Random Sampling in Excel: Process & Theory | Q26: =INDEX($E$6:$E$15,INT((ROWS(Q$5:Q26)-1)/10)+1) -> 49625 | R26: =INDEX($M$6:$M$15,MOD(ROWS(R$5:R26)-1,10)+1) -> 31250 | U26: =INDEX($A$2:$A$6,INT((ROWS(U$5:U26)-1)/5)+1) -> 29500 | V26: =INDEX($I$2:$I$6,MOD(ROWS(V$5:V26)-1,5)+1) -> 65000
E27: Excel 2013 Statistical Analysis #44: Sampling Distribution of Xbar and the Central Limit Theorem | Q27: =INDEX($E$6:$E$15,INT((ROWS(Q$5:Q27)-1)/10)+1) -> 49625 | R27: =INDEX($M$6:$M$15,MOD(ROWS(R$5:R27)-1,10)+1) -> 34250 | U27: =INDEX($A$2:$A$6,INT((ROWS(U$5:U27)-1)/5)+1) -> 29500 | V27: =INDEX($I$2:$I$6,MOD(ROWS(V$5:V27)-1,5)+1) -> 19000
Q28: =INDEX($E$6:$E$15,INT((ROWS(Q$5:Q28)-1)/10)+1) -> 49625 | R28: =INDEX($M$6:$M$15,MOD(ROWS(R$5:R28)-1,10)+1) -> 39000 | U28: =INDEX($A$2:$A$6,INT((ROWS(U$5:U28)-1)/5)+1) -> 29500 | V28: =INDEX($I$2:$I$6,MOD(ROWS(V$5:V28)-1,5)+1) -> 25000
Q29: =INDEX($E$6:$E$15,INT((ROWS(Q$5:Q29)-1)/10)+1) -> 49625 | R29: =INDEX($M$6:$M$15,MOD(ROWS(R$5:R29)-1,10)+1) -> 42000 | U29: =INDEX($A$2:$A$6,INT((ROWS(U$5:U29)-1)/5)+1) -> 29500 | V29: =INDEX($I$2:$I$6,MOD(ROWS(V$5:V29)-1,5)+1) -> 34500
Q30: =INDEX($E$6:$E$15,INT((ROWS(Q$5:Q30)-1)/10)+1) -> 49625 | R30: =INDEX($M$6:$M$15,MOD(ROWS(R$5:R30)-1,10)+1) -> 45000
Q31: =INDEX($E$6:$E$15,INT((ROWS(Q$5:Q31)-1)/10)+1) -> 49625 | R31: =INDEX($M$6:$M$15,MOD(ROWS(R$5:R31)-1,10)+1) -> 49750 | AB31: Check:
Q32: =INDEX($E$6:$E$15,INT((ROWS(Q$5:Q32)-1)/10)+1) -> 49625 | R32: =INDEX($M$6:$M$15,MOD(ROWS(R$5:R32)-1,10)+1) -> 22000 | U32: Mean of all Sample Differences = μXbar1-Xbar2 = | Y32: Expected Value (Xbar1 - Xbar2)
Q33: =INDEX($E$6:$E$15,INT((ROWS(Q$5:Q33)-1)/10)+1) -> 49625 | R33: =INDEX($M$6:$M$15,MOD(ROWS(R$5:R33)-1,10)+1) -> 26750 | U33: Pop Mean = μ1 - μ2 =
Q34: =INDEX($E$6:$E$15,INT((ROWS(Q$5:Q34)-1)/10)+1) -> 49625 | R34: =INDEX($M$6:$M$15,MOD(ROWS(R$5:R34)-1,10)+1) -> 29750 | U34: Sample Size = n =
Q35: =INDEX($E$6:$E$15,INT((ROWS(Q$5:Q35)-1)/10)+1) -> 52250 | R35: =INDEX($M$6:$M$15,MOD(ROWS(R$5:R35)-1,10)+1) -> 54250 | U35: Pop Size
Q36: =INDEX($E$6:$E$15,INT((ROWS(Q$5:Q36)-1)/10)+1) -> 52250 | R36: =INDEX($M$6:$M$15,MOD(ROWS(R$5:R36)-1,10)+1) -> 31250 | Z36: n/N
Q37: =INDEX($E$6:$E$15,INT((ROWS(Q$5:Q37)-1)/10)+1) -> 52250 | R37: =INDEX($M$6:$M$15,MOD(ROWS(R$5:R37)-1,10)+1) -> 34250 | W37: Pop SD = Sigma = | AA37: **Must use Finite Population Correction Factor when n/N > 0.05
Q38: =INDEX($E$6:$E$15,INT((ROWS(Q$5:Q38)-1)/10)+1) -> 52250 | R38: =INDEX($M$6:$M$15,MOD(ROWS(R$5:R38)-1,10)+1) -> 39000 | W38: Standard Error of SDofXbar1-Xbar2 = | Y38: < Pop cuz it lists ALL possible samples
Q39: =INDEX($E$6:$E$15,INT((ROWS(Q$5:Q39)-1)/10)+1) -> 52250 | R39: =INDEX($M$6:$M$15,MOD(ROWS(R$5:R39)-1,10)+1) -> 42000 | T39: Standard Error = SQRT(Var1/n1+Var2/n2)*SQRT((N-n)/(N-1))
Q40: =INDEX($E$6:$E$15,INT((ROWS(Q$5:Q40)-1)/10)+1) -> 52250 | R40: =INDEX($M$6:$M$15,MOD(ROWS(R$5:R40)-1,10)+1) -> 45000
Q41: =INDEX($E$6:$E$15,INT((ROWS(Q$5:Q41)-1)/10)+1) -> 52250 | R41: =INDEX($M$6:$M$15,MOD(ROWS(R$5:R41)-1,10)+1) -> 49750
Q42: =INDEX($E$6:$E$15,INT((ROWS(Q$5:Q42)-1)/10)+1) -> 52250 | R42: =INDEX($M$6:$M$15,MOD(ROWS(R$5:R42)-1,10)+1) -> 22000
Q43: =INDEX($E$6:$E$15,INT((ROWS(Q$5:Q43)-1)/10)+1) -> 52250 | R43: =INDEX($M$6:$M$15,MOD(ROWS(R$5:R43)-1,10)+1) -> 26750
Q44: =INDEX($E$6:$E$15,INT((ROWS(Q$5:Q44)-1)/10)+1) -> 52250 | R44: =INDEX($M$6:$M$15,MOD(ROWS(R$5:R44)-1,10)+1) -> 29750
Q45: =INDEX($E$6:$E$15,INT((ROWS(Q$5:Q45)-1)/10)+1) -> 36650 | R45: =INDEX($M$6:$M$15,MOD(ROWS(R$5:R45)-1,10)+1) -> 54250
Q46: =INDEX($E$6:$E$15,INT((ROWS(Q$5:Q46)-1)/10)+1) -> 36650 | R46: =INDEX($M$6:$M$15,MOD(ROWS(R$5:R46)-1,10)+1) -> 31250
Q47: =INDEX($E$6:$E$15,INT((ROWS(Q$5:Q47)-1)/10)+1) -> 36650 | R47: =INDEX($M$6:$M$15,MOD(ROWS(R$5:R47)-1,10)+1) -> 34250
Q48: =INDEX($E$6:$E$15,INT((ROWS(Q$5:Q48)-1)/10)+1) -> 36650 | R48: =INDEX($M$6:$M$15,MOD(ROWS(R$5:R48)-1,10)+1) -> 39000
Q49: =INDEX($E$6:$E$15,INT((ROWS(Q$5:Q49)-1)/10)+1) -> 36650 | R49: =INDEX($M$6:$M$15,MOD(ROWS(R$5:R49)-1,10)+1) -> 42000
Q50: =INDEX($E$6:$E$15,INT((ROWS(Q$5:Q50)-1)/10)+1) -> 36650 | R50: =INDEX($M$6:$M$15,MOD(ROWS(R$5:R50)-1,10)+1) -> 45000
Q51: =INDEX($E$6:$E$15,INT((ROWS(Q$5:Q51)-1)/10)+1) -> 36650 | R51: =INDEX($M$6:$M$15,MOD(ROWS(R$5:R51)-1,10)+1) -> 49750
Q52: =INDEX($E$6:$E$15,INT((ROWS(Q$5:Q52)-1)/10)+1) -> 36650 | R52: =INDEX($M$6:$M$15,MOD(ROWS(R$5:R52)-1,10)+1) -> 22000
Q53: =INDEX($E$6:$E$15,INT((ROWS(Q$5:Q53)-1)/10)+1) -> 36650 | R53: =INDEX($M$6:$M$15,MOD(ROWS(R$5:R53)-1,10)+1) -> 26750
Q54: =INDEX($E$6:$E$15,INT((ROWS(Q$5:Q54)-1)/10)+1) -> 36650 | R54: =INDEX($M$6:$M$15,MOD(ROWS(R$5:R54)-1,10)+1) -> 29750
Q55: =INDEX($E$6:$E$15,INT((ROWS(Q$5:Q55)-1)/10)+1) -> 39525 | R55: =INDEX($M$6:$M$15,MOD(ROWS(R$5:R55)-1,10)+1) -> 54250
Q56: =INDEX($E$6:$E$15,INT((ROWS(Q$5:Q56)-1)/10)+1) -> 39525 | R56: =INDEX($M$6:$M$15,MOD(ROWS(R$5:R56)-1,10)+1) -> 31250
Q57: =INDEX($E$6:$E$15,INT((ROWS(Q$5:Q57)-1)/10)+1) -> 39525 | R57: =INDEX($M$6:$M$15,MOD(ROWS(R$5:R57)-1,10)+1) -> 34250
Q58: =INDEX($E$6:$E$15,INT((ROWS(Q$5:Q58)-1)/10)+1) -> 39525 | R58: =INDEX($M$6:$M$15,MOD(ROWS(R$5:R58)-1,10)+1) -> 39000
Q59: =INDEX($E$6:$E$15,INT((ROWS(Q$5:Q59)-1)/10)+1) -> 39525 | R59: =INDEX($M$6:$M$15,MOD(ROWS(R$5:R59)-1,10)+1) -> 42000
Q60: =INDEX($E$6:$E$15,INT((ROWS(Q$5:Q60)-1)/10)+1) -> 39525 | R60: =INDEX($M$6:$M$15,MOD(ROWS(R$5:R60)-1,10)+1) -> 45000
Q61: =INDEX($E$6:$E$15,INT((ROWS(Q$5:Q61)-1)/10)+1) -> 39525 | R61: =INDEX($M$6:$M$15,MOD(ROWS(R$5:R61)-1,10)+1) -> 49750
Q62: =INDEX($E$6:$E$15,INT((ROWS(Q$5:Q62)-1)/10)+1) -> 39525 | R62: =INDEX($M$6:$M$15,MOD(ROWS(R$5:R62)-1,10)+1) -> 22000
Q63: =INDEX($E$6:$E$15,INT((ROWS(Q$5:Q63)-1)/10)+1) -> 39525 | R63: =INDEX($M$6:$M$15,MOD(ROWS(R$5:R63)-1,10)+1) -> 26750
Q64: =INDEX($E$6:$E$15,INT((ROWS(Q$5:Q64)-1)/10)+1) -> 39525 | R64: =INDEX($M$6:$M$15,MOD(ROWS(R$5:R64)-1,10)+1) -> 29750
Q65: =INDEX($E$6:$E$15,INT((ROWS(Q$5:Q65)-1)/10)+1) -> 42150 | R65: =INDEX($M$6:$M$15,MOD(ROWS(R$5:R65)-1,10)+1) -> 54250
Q66: =INDEX($E$6:$E$15,INT((ROWS(Q$5:Q66)-1)/10)+1) -> 42150 | R66: =INDEX($M$6:$M$15,MOD(ROWS(R$5:R66)-1,10)+1) -> 31250
Q67: =INDEX($E$6:$E$15,INT((ROWS(Q$5:Q67)-1)/10)+1) -> 42150 | R67: =INDEX($M$6:$M$15,MOD(ROWS(R$5:R67)-1,10)+1) -> 34250
Q68: =INDEX($E$6:$E$15,INT((ROWS(Q$5:Q68)-1)/10)+1) -> 42150 | R68: =INDEX($M$6:$M$15,MOD(ROWS(R$5:R68)-1,10)+1) -> 39000
Q69: =INDEX($E$6:$E$15,INT((ROWS(Q$5:Q69)-1)/10)+1) -> 42150 | R69: =INDEX($M$6:$M$15,MOD(ROWS(R$5:R69)-1,10)+1) -> 42000
Q70: =INDEX($E$6:$E$15,INT((ROWS(Q$5:Q70)-1)/10)+1) -> 42150 | R70: =INDEX($M$6:$M$15,MOD(ROWS(R$5:R70)-1,10)+1) -> 45000
Q71: =INDEX($E$6:$E$15,INT((ROWS(Q$5:Q71)-1)/10)+1) -> 42150 | R71: =INDEX($M$6:$M$15,MOD(ROWS(R$5:R71)-1,10)+1) -> 49750
Q72: =INDEX($E$6:$E$15,INT((ROWS(Q$5:Q72)-1)/10)+1) -> 42150 | R72: =INDEX($M$6:$M$15,MOD(ROWS(R$5:R72)-1,10)+1) -> 22000
Q73: =INDEX($E$6:$E$15,INT((ROWS(Q$5:Q73)-1)/10)+1) -> 42150 | R73: =INDEX($M$6:$M$15,MOD(ROWS(R$5:R73)-1,10)+1) -> 26750
Q74: =INDEX($E$6:$E$15,INT((ROWS(Q$5:Q74)-1)/10)+1) -> 42150 | R74: =INDEX($M$6:$M$15,MOD(ROWS(R$5:R74)-1,10)+1) -> 29750
Q75: =INDEX($E$6:$E$15,INT((ROWS(Q$5:Q75)-1)/10)+1) -> 21375 | R75: =INDEX($M$6:$M$15,MOD(ROWS(R$5:R75)-1,10)+1) -> 54250
Q76: =INDEX($E$6:$E$15,INT((ROWS(Q$5:Q76)-1)/10)+1) -> 21375 | R76: =INDEX($M$6:$M$15,MOD(ROWS(R$5:R76)-1,10)+1) -> 31250
Q77: =INDEX($E$6:$E$15,INT((ROWS(Q$5:Q77)-1)/10)+1) -> 21375 | R77: =INDEX($M$6:$M$15,MOD(ROWS(R$5:R77)-1,10)+1) -> 34250
Q78: =INDEX($E$6:$E$15,INT((ROWS(Q$5:Q78)-1)/10)+1) -> 21375 | R78: =INDEX($M$6:$M$15,MOD(ROWS(R$5:R78)-1,10)+1) -> 39000
Q79: =INDEX($E$6:$E$15,INT((ROWS(Q$5:Q79)-1)/10)+1) -> 21375 | R79: =INDEX($M$6:$M$15,MOD(ROWS(R$5:R79)-1,10)+1) -> 42000
Q80: =INDEX($E$6:$E$15,INT((ROWS(Q$5:Q80)-1)/10)+1) -> 21375 | R80: =INDEX($M$6:$M$15,MOD(ROWS(R$5:R80)-1,10)+1) -> 45000
Q81: =INDEX($E$6:$E$15,INT((ROWS(Q$5:Q81)-1)/10)+1) -> 21375 | R81: =INDEX($M$6:$M$15,MOD(ROWS(R$5:R81)-1,10)+1) -> 49750
Q82: =INDEX($E$6:$E$15,INT((ROWS(Q$5:Q82)-1)/10)+1) -> 21375 | R82: =INDEX($M$6:$M$15,MOD(ROWS(R$5:R82)-1,10)+1) -> 22000
Q83: =INDEX($E$6:$E$15,INT((ROWS(Q$5:Q83)-1)/10)+1) -> 21375 | R83: =INDEX($M$6:$M$15,MOD(ROWS(R$5:R83)-1,10)+1) -> 26750
Q84: =INDEX($E$6:$E$15,INT((ROWS(Q$5:Q84)-1)/10)+1) -> 21375 | R84: =INDEX($M$6:$M$15,MOD(ROWS(R$5:R84)-1,10)+1) -> 29750
Q85: =INDEX($E$6:$E$15,INT((ROWS(Q$5:Q85)-1)/10)+1) -> 24000 | R85: =INDEX($M$6:$M$15,MOD(ROWS(R$5:R85)-1,10)+1) -> 54250
Q86: =INDEX($E$6:$E$15,INT((ROWS(Q$5:Q86)-1)/10)+1) -> 24000 | R86: =INDEX($M$6:$M$15,MOD(ROWS(R$5:R86)-1,10)+1) -> 31250
Q87: =INDEX($E$6:$E$15,INT((ROWS(Q$5:Q87)-1)/10)+1) -> 24000 | R87: =INDEX($M$6:$M$15,MOD(ROWS(R$5:R87)-1,10)+1) -> 34250
Q88: =INDEX($E$6:$E$15,INT((ROWS(Q$5:Q88)-1)/10)+1) -> 24000 | R88: =INDEX($M$6:$M$15,MOD(ROWS(R$5:R88)-1,10)+1) -> 39000
Q89: =INDEX($E$6:$E$15,INT((ROWS(Q$5:Q89)-1)/10)+1) -> 24000 | R89: =INDEX($M$6:$M$15,MOD(ROWS(R$5:R89)-1,10)+1) -> 42000
Q90: =INDEX($E$6:$E$15,INT((ROWS(Q$5:Q90)-1)/10)+1) -> 24000 | R90: =INDEX($M$6:$M$15,MOD(ROWS(R$5:R90)-1,10)+1) -> 45000
Q91: =INDEX($E$6:$E$15,INT((ROWS(Q$5:Q91)-1)/10)+1) -> 24000 | R91: =INDEX($M$6:$M$15,MOD(ROWS(R$5:R91)-1,10)+1) -> 49750
Q92: =INDEX($E$6:$E$15,INT((ROWS(Q$5:Q92)-1)/10)+1) -> 24000 | R92: =INDEX($M$6:$M$15,MOD(ROWS(R$5:R92)-1,10)+1) -> 22000
Q93: =INDEX($E$6:$E$15,INT((ROWS(Q$5:Q93)-1)/10)+1) -> 24000 | R93: =INDEX($M$6:$M$15,MOD(ROWS(R$5:R93)-1,10)+1) -> 26750
Q94: =INDEX($E$6:$E$15,INT((ROWS(Q$5:Q94)-1)/10)+1) -> 24000 | R94: =INDEX($M$6:$M$15,MOD(ROWS(R$5:R94)-1,10)+1) -> 29750
Q95: =INDEX($E$6:$E$15,INT((ROWS(Q$5:Q95)-1)/10)+1) -> 26875 | R95: =INDEX($M$6:$M$15,MOD(ROWS(R$5:R95)-1,10)+1) -> 54250
Q96: =INDEX($E$6:$E$15,INT((ROWS(Q$5:Q96)-1)/10)+1) -> 26875 | R96: =INDEX($M$6:$M$15,MOD(ROWS(R$5:R96)-1,10)+1) -> 31250
Q97: =INDEX($E$6:$E$15,INT((ROWS(Q$5:Q97)-1)/10)+1) -> 26875 | R97: =INDEX($M$6:$M$15,MOD(ROWS(R$5:R97)-1,10)+1) -> 34250
Q98: =INDEX($E$6:$E$15,INT((ROWS(Q$5:Q98)-1)/10)+1) -> 26875 | R98: =INDEX($M$6:$M$15,MOD(ROWS(R$5:R98)-1,10)+1) -> 39000
Q99: =INDEX($E$6:$E$15,INT((ROWS(Q$5:Q99)-1)/10)+1) -> 26875 | R99: =INDEX($M$6:$M$15,MOD(ROWS(R$5:R99)-1,10)+1) -> 42000
Q100: =INDEX($E$6:$E$15,INT((ROWS(Q$5:Q100)-1)/10)+1) -> 26875 | R100: =INDEX($M$6:$M$15,MOD(ROWS(R$5:R100)-1,10)+1) -> 45000
Q101: =INDEX($E$6:$E$15,INT((ROWS(Q$5:Q101)-1)/10)+1) -> 26875 | R101: =INDEX($M$6:$M$15,MOD(ROWS(R$5:R101)-1,10)+1) -> 49750
Q102: =INDEX($E$6:$E$15,INT((ROWS(Q$5:Q102)-1)/10)+1) -> 26875 | R102: =INDEX($M$6:$M$15,MOD(ROWS(R$5:R102)-1,10)+1) -> 22000
Q103: =INDEX($E$6:$E$15,INT((ROWS(Q$5:Q103)-1)/10)+1) -> 26875 | R103: =INDEX($M$6:$M$15,MOD(ROWS(R$5:R103)-1,10)+1) -> 26750
Q104: =INDEX($E$6:$E$15,INT((ROWS(Q$5:Q104)-1)/10)+1) -> 26875 | R104: =INDEX($M$6:$M$15,MOD(ROWS(R$5:R104)-1,10)+1) -> 29750
P106: Video Reference for incrementing Numbers:
P107: Excel Magic Trick 692: More About Incrementing Numbers In Formulas
P108: https://www.youtube.com/watch?v=AIQbJAPMrEg
P109: Excel Magic Trick 650: Formula To Extract All Rows In Data Set Into 1 Column INDEX function
P110: https://www.youtube.com/watch?v=KtIOwYNkUdE

Sheet SDofDiffXbars (an)
A1: Town 1 | D1: N | E1: =COUNT(A2:A6) -> 5 | I1: Town 2 | L1: N | M1: =COUNT(I2:I6) -> 5 | Q1: Total Differences = | S1: =E3*M3 -> 100 | Y1: Max | Z1: =MAX(S5:S104,W5:W29) -> 56000 | AC1: Sampling Distribution of Xbar1-Xbar2
A2: 75000 | D2: n1 | E2: 2 | I2: 43500 | L2: n2 | M2: 2 | Q2: Sample Differences: | U2: Pop Differences: | Y2: Min | Z2: =MIN(S5:S104,W5:W29) -> -46500
A3: 54800 | D3: Combinations | E3: =COMBIN(E1,E2) -> 10 | F3: All Possible Samples | I3: 65000 | L3: Combinations | M3: =COMBIN(M1,M2) -> 10 | N3: All Possible Samples
A4: 18500 | I4: 19000 | Q4: Town 1 | R4: Town 2 | S4: Difference | U4: Town 1 | V4: Town 2 | W4: Difference | Y4: Lower | Z4: Upper | AA4: Label | AB4: Pop Frequency | AC4: Sample Frequency
A5: 24250 | C5: SP 1 | D5: SP 2 | E5: Xbar | I5: 25000 | K5: SP 1 | L5: SP 2 | M5: Xbar | Q5: =INDEX($E$6:$E$15,INT((ROWS(Q$5:Q5)-1)/10)+1) -> 64900 | R5: =INDEX($M$6:$M$15,MOD(ROWS(R$5:R5)-1,10)+1) -> 54250 | S5: =Q5-R5 -> 10650 | U5: =INDEX($A$2:$A$6,INT((ROWS(U$5:U5)-1)/5)+1) -> 75000 | V5: =INDEX($I$2:$I$6,MOD(ROWS(V$5:V5)-1,5)+1) -> 43500 | W5: =U5-V5 -> 31500 | Y5: -60000 | Z5: =Y5+5000 -> -55000 | AA5: =TEXT(Y5,"0,K")&" up to "&TEXT(Z5,"0,K") -> -60K up to -55K | AB5: =COUNTIFS($W$5:$W$29,">="&Y5,$W$5:$W$29,"<"&Z5) -> 0 | AC5: =COUNTIFS($S$5:$S$104,">="&Y5,$S$5:$S$104,"<"&Z5) -> 0
A6: 29500 | C6: =$A$2 -> 75000 | D6: =A3 -> 54800 | E6: =AVERAGE(C6:D6) -> 64900 | I6: 34500 | K6: =$I$2 -> 43500 | L6: =I3 -> 65000 | M6: =AVERAGE(K6:L6) -> 54250 | Q6: =INDEX($E$6:$E$15,INT((ROWS(Q$5:Q6)-1)/10)+1) -> 64900 | R6: =INDEX($M$6:$M$15,MOD(ROWS(R$5:R6)-1,10)+1) -> 31250 | S6: =Q6-R6 -> 33650 | U6: =INDEX($A$2:$A$6,INT((ROWS(U$5:U6)-1)/5)+1) -> 75000 | V6: =INDEX($I$2:$I$6,MOD(ROWS(V$5:V6)-1,5)+1) -> 65000 | W6: =U6-V6 -> 10000 | Y6: =Z5 -> -55000 | Z6: =Y6+5000 -> -50000 | AA6: =TEXT(Y6,"0,K")&" up to "&TEXT(Z6,"0,K") -> -55K up to -50K | AB6: =COUNTIFS($W$5:$W$29,">="&Y6,$W$5:$W$29,"<"&Z6) -> 0 | AC6: =COUNTIFS($S$5:$S$104,">="&Y6,$S$5:$S$104,"<"&Z6) -> 0
C7: 75000 | D7: 18500 | E7: =AVERAGE(C7:D7) -> 46750 | K7: 43500 | L7: 19000 | M7: 31250 | Q7: =INDEX($E$6:$E$15,INT((ROWS(Q$5:Q7)-1)/10)+1) -> 64900 | R7: =INDEX($M$6:$M$15,MOD(ROWS(R$5:R7)-1,10)+1) -> 34250 | S7: 30650 | U7: =INDEX($A$2:$A$6,INT((ROWS(U$5:U7)-1)/5)+1) -> 75000 | V7: =INDEX($I$2:$I$6,MOD(ROWS(V$5:V7)-1,5)+1) -> 19000 | W7: 56000 | Y7: =Z6 -> -50000 | Z7: =Y7+5000 -> -45000 | AA7: =TEXT(Y7,"0,K")&" up to "&TEXT(Z7,"0,K") -> -50K up to -45K | AB7: =COUNTIFS($W$5:$W$29,">="&Y7,$W$5:$W$29,"<"&Z7) -> 1 | AC7: =COUNTIFS($S$5:$S$104,">="&Y7,$S$5:$S$104,"<"&Z7) -> 0
C8: 75000 | D8: 24250 | E8: 49625 | K8: 43500 | L8: 25000 | M8: 34250 | Q8: =INDEX($E$6:$E$15,INT((ROWS(Q$5:Q8)-1)/10)+1) -> 64900 | R8: =INDEX($M$6:$M$15,MOD(ROWS(R$5:R8)-1,10)+1) -> 39000 | S8: 25900 | U8: =INDEX($A$2:$A$6,INT((ROWS(U$5:U8)-1)/5)+1) -> 75000 | V8: =INDEX($I$2:$I$6,MOD(ROWS(V$5:V8)-1,5)+1) -> 25000 | W8: 50000 | Y8: -45000 | Z8: -40000 | AA8: -45K up to -40K | AB8: 1 | AC8: 0
C9: 75000 | D9: 29500 | E9: 52250 | K9: 43500 | L9: 34500 | M9: 39000 | Q9: =INDEX($E$6:$E$15,INT((ROWS(Q$5:Q9)-1)/10)+1) -> 64900 | R9: =INDEX($M$6:$M$15,MOD(ROWS(R$5:R9)-1,10)+1) -> 42000 | S9: 22900 | U9: =INDEX($A$2:$A$6,INT((ROWS(U$5:U9)-1)/5)+1) -> 75000 | V9: =INDEX($I$2:$I$6,MOD(ROWS(V$5:V9)-1,5)+1) -> 34500 | W9: 40500 | Y9: -40000 | Z9: -35000 | AA9: -40K up to -35K | AB9: 1 | AC9: 0
C10: =$A$3 -> 54800 | D10: =A4 -> 18500 | E10: 36650 | K10: =$I$3 -> 65000 | L10: =I4 -> 19000 | M10: 42000 | Q10: =INDEX($E$6:$E$15,INT((ROWS(Q$5:Q10)-1)/10)+1) -> 64900 | R10: =INDEX($M$6:$M$15,MOD(ROWS(R$5:R10)-1,10)+1) -> 45000 | S10: 19900 | U10: =INDEX($A$2:$A$6,INT((ROWS(U$5:U10)-1)/5)+1) -> 54800 | V10: =INDEX($I$2:$I$6,MOD(ROWS(V$5:V10)-1,5)+1) -> 43500 | W10: 11300 | Y10: -35000 | Z10: -30000 | AA10: -35K up to -30K | AB10: 0 | AC10: 2
C11: 54800 | D11: 24250 | E11: 39525 | K11: 65000 | L11: 25000 | M11: 45000 | Q11: =INDEX($E$6:$E$15,INT((ROWS(Q$5:Q11)-1)/10)+1) -> 64900 | R11: =INDEX($M$6:$M$15,MOD(ROWS(R$5:R11)-1,10)+1) -> 49750 | S11: 15150 | U11: =INDEX($A$2:$A$6,INT((ROWS(U$5:U11)-1)/5)+1) -> 54800 | V11: =INDEX($I$2:$I$6,MOD(ROWS(V$5:V11)-1,5)+1) -> 65000 | W11: -10200 | Y11: -30000 | Z11: -25000 | AA11: -30K up to -25K | AB11: 0 | AC11: 3
C12: 54800 | D12: 29500 | E12: 42150 | K12: 65000 | L12: 34500 | M12: 49750 | Q12: =INDEX($E$6:$E$15,INT((ROWS(Q$5:Q12)-1)/10)+1) -> 64900 | R12: =INDEX($M$6:$M$15,MOD(ROWS(R$5:R12)-1,10)+1) -> 22000 | S12: 42900 | U12: =INDEX($A$2:$A$6,INT((ROWS(U$5:U12)-1)/5)+1) -> 54800 | V12: =INDEX($I$2:$I$6,MOD(ROWS(V$5:V12)-1,5)+1) -> 19000 | W12: 35800 | Y12: -25000 | Z12: -20000 | AA12: -25K up to -20K | AB12: 1 | AC12: 4
C13: =$A$4 -> 18500 | D13: =A5 -> 24250 | E13: 21375 | K13: =$I$4 -> 19000 | L13: =I5 -> 25000 | M13: 22000 | Q13: =INDEX($E$6:$E$15,INT((ROWS(Q$5:Q13)-1)/10)+1) -> 64900 | R13: =INDEX($M$6:$M$15,MOD(ROWS(R$5:R13)-1,10)+1) -> 26750 | S13: 38150 | U13: =INDEX($A$2:$A$6,INT((ROWS(U$5:U13)-1)/5)+1) -> 54800 | V13: =INDEX($I$2:$I$6,MOD(ROWS(V$5:V13)-1,5)+1) -> 25000 | W13: 29800 | Y13: -20000 | Z13: -15000 | AA13: -20K up to -15K | AB13: 2 | AC13: 5
C14: 18500 | D14: 29500 | E14: 24000 | K14: 19000 | L14: 34500 | M14: 26750 | Q14: =INDEX($E$6:$E$15,INT((ROWS(Q$5:Q14)-1)/10)+1) -> 64900 | R14: =INDEX($M$6:$M$15,MOD(ROWS(R$5:R14)-1,10)+1) -> 29750 | S14: 35150 | U14: =INDEX($A$2:$A$6,INT((ROWS(U$5:U14)-1)/5)+1) -> 54800 | V14: =INDEX($I$2:$I$6,MOD(ROWS(V$5:V14)-1,5)+1) -> 34500 | W14: 20300 | Y14: -15000 | Z14: -10000 | AA14: -15K up to -10K | AB14: 3 | AC14: 8
C15: =A5 -> 24250 | D15: =A6 -> 29500 | E15: 26875 | K15: =I5 -> 25000 | L15: =I6 -> 34500 | M15: 29750 | Q15: =INDEX($E$6:$E$15,INT((ROWS(Q$5:Q15)-1)/10)+1) -> 46750 | R15: =INDEX($M$6:$M$15,MOD(ROWS(R$5:R15)-1,10)+1) -> 54250 | S15: -7500 | U15: =INDEX($A$2:$A$6,INT((ROWS(U$5:U15)-1)/5)+1) -> 18500 | V15: =INDEX($I$2:$I$6,MOD(ROWS(V$5:V15)-1,5)+1) -> 43500 | W15: -25000 | Y15: -10000 | Z15: -5000 | AA15: -10K up to -5K | AB15: 1 | AC15: 11
Q16: =INDEX($E$6:$E$15,INT((ROWS(Q$5:Q16)-1)/10)+1) -> 46750 | R16: =INDEX($M$6:$M$15,MOD(ROWS(R$5:R16)-1,10)+1) -> 31250 | S16: 15500 | U16: =INDEX($A$2:$A$6,INT((ROWS(U$5:U16)-1)/5)+1) -> 18500 | V16: =INDEX($I$2:$I$6,MOD(ROWS(V$5:V16)-1,5)+1) -> 65000 | W16: -46500 | Y16: -5000 | Z16: 0 | AA16: -5K up to 0K | AB16: 3 | AC16: 11
D17: Mean of all Means = μXbar = | E17: =AVERAGE(E6:E15) -> 40410 | F17: Expected Value (Xbar) = E(Xbar) | L17: Mean of all Means = μXbar = | M17: =AVERAGE(M6:M15) -> 37400 | N17: Expected Value (Xbar) = E(Xbar) | Q17: =INDEX($E$6:$E$15,INT((ROWS(Q$5:Q17)-1)/10)+1) -> 46750 | R17: =INDEX($M$6:$M$15,MOD(ROWS(R$5:R17)-1,10)+1) -> 34250 | S17: 12500 | U17: =INDEX($A$2:$A$6,INT((ROWS(U$5:U17)-1)/5)+1) -> 18500 | V17: =INDEX($I$2:$I$6,MOD(ROWS(V$5:V17)-1,5)+1) -> 19000 | W17: -500 | Y17: 0 | Z17: 5000 | AA17: 0K up to 5K | AB17: 1 | AC17: 11
D18: Pop Mean = μ = | E18: =AVERAGE(A2:A6) -> 40410 | L18: Pop Mean = μ = | M18: =AVERAGE(I2:I6) -> 37400 | Q18: =INDEX($E$6:$E$15,INT((ROWS(Q$5:Q18)-1)/10)+1) -> 46750 | R18: =INDEX($M$6:$M$15,MOD(ROWS(R$5:R18)-1,10)+1) -> 39000 | S18: 7750 | U18: =INDEX($A$2:$A$6,INT((ROWS(U$5:U18)-1)/5)+1) -> 18500 | V18: =INDEX($I$2:$I$6,MOD(ROWS(V$5:V18)-1,5)+1) -> 25000 | W18: -6500 | Y18: 5000 | Z18: 10000 | AA18: 5K up to 10K | AB18: 1 | AC18: 10
G19: n/N | O19: n/N | Q19: =INDEX($E$6:$E$15,INT((ROWS(Q$5:Q19)-1)/10)+1) -> 46750 | R19: =INDEX($M$6:$M$15,MOD(ROWS(R$5:R19)-1,10)+1) -> 42000 | S19: 4750 | U19: =INDEX($A$2:$A$6,INT((ROWS(U$5:U19)-1)/5)+1) -> 18500 | V19: =INDEX($I$2:$I$6,MOD(ROWS(V$5:V19)-1,5)+1) -> 34500 | W19: -16000 | Y19: 10000 | Z19: 15000 | AA19: 10K up to 15K | AB19: 3 | AC19: 9
D20: Pop SD = Sigma = | E20: =_xlfn.STDEV.P(A2:A6) -> 21277.97923 | G20: =E2/E1 -> 0.4 | L20: Pop SD = Sigma = | M20: =_xlfn.STDEV.P(I2:I6) -> 16122.65487 | O20: =M2/M1 -> 0.4 | Q20: =INDEX($E$6:$E$15,INT((ROWS(Q$5:Q20)-1)/10)+1) -> 46750 | R20: =INDEX($M$6:$M$15,MOD(ROWS(R$5:R20)-1,10)+1) -> 45000 | S20: 1750 | U20: =INDEX($A$2:$A$6,INT((ROWS(U$5:U20)-1)/5)+1) -> 24250 | V20: =INDEX($I$2:$I$6,MOD(ROWS(V$5:V20)-1,5)+1) -> 43500 | W20: -19250 | Y20: 15000 | Z20: 20000 | AA20: 15K up to 20K | AB20: 0 | AC20: 10
D21: Standard Error of SDofXbar = | E21: =_xlfn.STDEV.P(E6:E15) -> 13030.04797 | F21: < Pop cuz it lists ALL possible samples | L21: Standard Error of SDofXbar = | M21: =_xlfn.STDEV.P(M6:M15) -> 9873.069432 | N21: < Pop cuz it lists ALL possible samples | Q21: =INDEX($E$6:$E$15,INT((ROWS(Q$5:Q21)-1)/10)+1) -> 46750 | R21: =INDEX($M$6:$M$15,MOD(ROWS(R$5:R21)-1,10)+1) -> 49750 | S21: -3000 | U21: =INDEX($A$2:$A$6,INT((ROWS(U$5:U21)-1)/5)+1) -> 24250 | V21: =INDEX($I$2:$I$6,MOD(ROWS(V$5:V21)-1,5)+1) -> 65000 | W21: -40750 | Y21: 20000 | Z21: 25000 | AA21: 20K up to 25K | AB21: 1 | AC21: 7
A22: Standard Error = Sigma/SQRT(n)*SQRT((N-n)/(N-1)) | E22: =E20/SQRT(E2)*SQRT((E1-E2)/(E1-1)) -> 13030.04797 | I22: Standard Error = Sigma/SQRT(n)*SQRT((N-n)/(N-1)) | M22: =M20/SQRT(M2)*SQRT((M1-M2)/(M1-1)) -> 9873.069432 | Q22: =INDEX($E$6:$E$15,INT((ROWS(Q$5:Q22)-1)/10)+1) -> 46750 | R22: =INDEX($M$6:$M$15,MOD(ROWS(R$5:R22)-1,10)+1) -> 22000 | S22: 24750 | U22: =INDEX($A$2:$A$6,INT((ROWS(U$5:U22)-1)/5)+1) -> 24250 | V22: =INDEX($I$2:$I$6,MOD(ROWS(V$5:V22)-1,5)+1) -> 19000 | W22: 5250 | Y22: 25000 | Z22: 30000 | AA22: 25K up to 30K | AB22: 1 | AC22: 3
Q23: =INDEX($E$6:$E$15,INT((ROWS(Q$5:Q23)-1)/10)+1) -> 46750 | R23: =INDEX($M$6:$M$15,MOD(ROWS(R$5:R23)-1,10)+1) -> 26750 | S23: 20000 | U23: =INDEX($A$2:$A$6,INT((ROWS(U$5:U23)-1)/5)+1) -> 24250 | V23: =INDEX($I$2:$I$6,MOD(ROWS(V$5:V23)-1,5)+1) -> 25000 | W23: -750 | Y23: 30000 | Z23: 35000 | AA23: 30K up to 35K | AB23: 1 | AC23: 3
D24: Pop Variance = Sigma^2 = s21 | E24: =E20^2 -> 452752400 | L24: Pop Variance = Sigma^2 = s22 | M24: =M20^2 -> 259940000 | Q24: =INDEX($E$6:$E$15,INT((ROWS(Q$5:Q24)-1)/10)+1) -> 46750 | R24: =INDEX($M$6:$M$15,MOD(ROWS(R$5:R24)-1,10)+1) -> 29750 | S24: 17000 | U24: =INDEX($A$2:$A$6,INT((ROWS(U$5:U24)-1)/5)+1) -> 24250 | V24: =INDEX($I$2:$I$6,MOD(ROWS(V$5:V24)-1,5)+1) -> 34500 | W24: -10250 | Y24: 35000 | Z24: 40000 | AA24: 35K up to 40K | AB24: 1 | AC24: 2
Q25: =INDEX($E$6:$E$15,INT((ROWS(Q$5:Q25)-1)/10)+1) -> 49625 | R25: =INDEX($M$6:$M$15,MOD(ROWS(R$5:R25)-1,10)+1) -> 54250 | S25: -4625 | U25: =INDEX($A$2:$A$6,INT((ROWS(U$5:U25)-1)/5)+1) -> 29500 | V25: =INDEX($I$2:$I$6,MOD(ROWS(V$5:V25)-1,5)+1) -> 43500 | W25: -14000 | Y25: 40000 | Z25: 45000 | AA25: 40K up to 45K | AB25: 1 | AC25: 1
A26: Similar to what we did in video: | E26: Excel 2013 Statistical Analysis #43: Simple Random Sampling in Excel: Process & Theory | Q26: =INDEX($E$6:$E$15,INT((ROWS(Q$5:Q26)-1)/10)+1) -> 49625 | R26: =INDEX($M$6:$M$15,MOD(ROWS(R$5:R26)-1,10)+1) -> 31250 | S26: 18375 | U26: =INDEX($A$2:$A$6,INT((ROWS(U$5:U26)-1)/5)+1) -> 29500 | V26: =INDEX($I$2:$I$6,MOD(ROWS(V$5:V26)-1,5)+1) -> 65000 | W26: -35500 | Y26: 45000 | Z26: 50000 | AA26: 45K up to 50K | AB26: 0 | AC26: 0
E27: Excel 2013 Statistical Analysis #44: Sampling Distribution of Xbar and the Central Limit Theorem | Q27: =INDEX($E$6:$E$15,INT((ROWS(Q$5:Q27)-1)/10)+1) -> 49625 | R27: =INDEX($M$6:$M$15,MOD(ROWS(R$5:R27)-1,10)+1) -> 34250 | S27: 15375 | U27: =INDEX($A$2:$A$6,INT((ROWS(U$5:U27)-1)/5)+1) -> 29500 | V27: =INDEX($I$2:$I$6,MOD(ROWS(V$5:V27)-1,5)+1) -> 19000 | W27: 10500 | Y27: 50000 | Z27: 55000 | AA27: 50K up to 55K | AB27: 1 | AC27: 0
Q28: =INDEX($E$6:$E$15,INT((ROWS(Q$5:Q28)-1)/10)+1) -> 49625 | R28: =INDEX($M$6:$M$15,MOD(ROWS(R$5:R28)-1,10)+1) -> 39000 | S28: 10625 | U28: =INDEX($A$2:$A$6,INT((ROWS(U$5:U28)-1)/5)+1) -> 29500 | V28: =INDEX($I$2:$I$6,MOD(ROWS(V$5:V28)-1,5)+1) -> 25000 | W28: 4500 | Y28: 55000 | Z28: 60000 | AA28: 55K up to 60K | AB28: 1 | AC28: 0
Q29: =INDEX($E$6:$E$15,INT((ROWS(Q$5:Q29)-1)/10)+1) -> 49625 | R29: =INDEX($M$6:$M$15,MOD(ROWS(R$5:R29)-1,10)+1) -> 42000 | S29: 7625 | U29: =INDEX($A$2:$A$6,INT((ROWS(U$5:U29)-1)/5)+1) -> 29500 | V29: =INDEX($I$2:$I$6,MOD(ROWS(V$5:V29)-1,5)+1) -> 34500 | W29: -5000
Q30: =INDEX($E$6:$E$15,INT((ROWS(Q$5:Q30)-1)/10)+1) -> 49625 | R30: =INDEX($M$6:$M$15,MOD(ROWS(R$5:R30)-1,10)+1) -> 45000 | S30: 4625
Q31: =INDEX($E$6:$E$15,INT((ROWS(Q$5:Q31)-1)/10)+1) -> 49625 | R31: =INDEX($M$6:$M$15,MOD(ROWS(R$5:R31)-1,10)+1) -> 49750 | S31: -125 | AB31: Check:
Q32: =INDEX($E$6:$E$15,INT((ROWS(Q$5:Q32)-1)/10)+1) -> 49625 | R32: =INDEX($M$6:$M$15,MOD(ROWS(R$5:R32)-1,10)+1) -> 22000 | S32: 27625 | U32: Mean of all Sample Differences = μXbar1-Xbar2 = | X32: =AVERAGE(S5:S104) -> 3010 | Y32: Expected Value (Xbar1 - Xbar2) | AB32: =AVERAGE(E6:E15)-AVERAGE(M6:M15) -> 3010 | AC32: =AVERAGE(Q5:Q104)-AVERAGE(R5:R104) -> 3010
Q33: =INDEX($E$6:$E$15,INT((ROWS(Q$5:Q33)-1)/10)+1) -> 49625 | R33: =INDEX($M$6:$M$15,MOD(ROWS(R$5:R33)-1,10)+1) -> 26750 | S33: 22875 | U33: Pop Mean = μ1 - μ2 = | X33: =AVERAGE(W5:W29) -> 3010 | AB33: =AVERAGE(A2:A6)-AVERAGE(I2:I6) -> 3010 | AC33: =AVERAGE(U5:U29)-AVERAGE(V5:V29) -> 3010
Q34: =INDEX($E$6:$E$15,INT((ROWS(Q$5:Q34)-1)/10)+1) -> 49625 | R34: =INDEX($M$6:$M$15,MOD(ROWS(R$5:R34)-1,10)+1) -> 29750 | S34: 19875 | U34: Sample Size = n = | X34: =E2 -> 2
Q35: =INDEX($E$6:$E$15,INT((ROWS(Q$5:Q35)-1)/10)+1) -> 52250 | R35: =INDEX($M$6:$M$15,MOD(ROWS(R$5:R35)-1,10)+1) -> 54250 | S35: -2000 | U35: Pop Size | X35: =E1 -> 5
Q36: =INDEX($E$6:$E$15,INT((ROWS(Q$5:Q36)-1)/10)+1) -> 52250 | R36: =INDEX($M$6:$M$15,MOD(ROWS(R$5:R36)-1,10)+1) -> 31250 | S36: 21000 | Z36: n/N
Q37: =INDEX($E$6:$E$15,INT((ROWS(Q$5:Q37)-1)/10)+1) -> 52250 | R37: =INDEX($M$6:$M$15,MOD(ROWS(R$5:R37)-1,10)+1) -> 34250 | S37: 18000 | W37: Pop SD = Sigma = | Z37: =X34/X35 -> 0.4 | AA37: **Must use Finite Population Correction Factor when n/N > 0.05
Q38: =INDEX($E$6:$E$15,INT((ROWS(Q$5:Q38)-1)/10)+1) -> 52250 | R38: =INDEX($M$6:$M$15,MOD(ROWS(R$5:R38)-1,10)+1) -> 39000 | S38: 13250 | W38: Standard Error of SDofXbar1-Xbar2 = | X38: =_xlfn.STDEV.P(S5:S104) -> 16348.07787 | Y38: < Pop cuz it lists ALL possible samples
Q39: =INDEX($E$6:$E$15,INT((ROWS(Q$5:Q39)-1)/10)+1) -> 52250 | R39: =INDEX($M$6:$M$15,MOD(ROWS(R$5:R39)-1,10)+1) -> 42000 | S39: 10250 | T39: Standard Error = SQRT(Var1/n1+Var2/n2)*SQRT((N-n)/(N-1)) | X39: =SQRT(E24/E2+M24/M2)*SQRT((X35-X34)/(X35-1)) -> 16348.07787
Q40: =INDEX($E$6:$E$15,INT((ROWS(Q$5:Q40)-1)/10)+1) -> 52250 | R40: =INDEX($M$6:$M$15,MOD(ROWS(R$5:R40)-1,10)+1) -> 45000 | S40: 7250
Q41: =INDEX($E$6:$E$15,INT((ROWS(Q$5:Q41)-1)/10)+1) -> 52250 | R41: =INDEX($M$6:$M$15,MOD(ROWS(R$5:R41)-1,10)+1) -> 49750 | S41: 2500
Q42: =INDEX($E$6:$E$15,INT((ROWS(Q$5:Q42)-1)/10)+1) -> 52250 | R42: =INDEX($M$6:$M$15,MOD(ROWS(R$5:R42)-1,10)+1) -> 22000 | S42: 30250
Q43: =INDEX($E$6:$E$15,INT((ROWS(Q$5:Q43)-1)/10)+1) -> 52250 | R43: =INDEX($M$6:$M$15,MOD(ROWS(R$5:R43)-1,10)+1) -> 26750 | S43: 25500
Q44: =INDEX($E$6:$E$15,INT((ROWS(Q$5:Q44)-1)/10)+1) -> 52250 | R44: =INDEX($M$6:$M$15,MOD(ROWS(R$5:R44)-1,10)+1) -> 29750 | S44: 22500
Q45: =INDEX($E$6:$E$15,INT((ROWS(Q$5:Q45)-1)/10)+1) -> 36650 | R45: =INDEX($M$6:$M$15,MOD(ROWS(R$5:R45)-1,10)+1) -> 54250 | S45: -17600
Q46: =INDEX($E$6:$E$15,INT((ROWS(Q$5:Q46)-1)/10)+1) -> 36650 | R46: =INDEX($M$6:$M$15,MOD(ROWS(R$5:R46)-1,10)+1) -> 31250 | S46: 5400
Q47: =INDEX($E$6:$E$15,INT((ROWS(Q$5:Q47)-1)/10)+1) -> 36650 | R47: =INDEX($M$6:$M$15,MOD(ROWS(R$5:R47)-1,10)+1) -> 34250 | S47: 2400
Q48: =INDEX($E$6:$E$15,INT((ROWS(Q$5:Q48)-1)/10)+1) -> 36650 | R48: =INDEX($M$6:$M$15,MOD(ROWS(R$5:R48)-1,10)+1) -> 39000 | S48: -2350
Q49: =INDEX($E$6:$E$15,INT((ROWS(Q$5:Q49)-1)/10)+1) -> 36650 | R49: =INDEX($M$6:$M$15,MOD(ROWS(R$5:R49)-1,10)+1) -> 42000 | S49: -5350
Q50: =INDEX($E$6:$E$15,INT((ROWS(Q$5:Q50)-1)/10)+1) -> 36650 | R50: =INDEX($M$6:$M$15,MOD(ROWS(R$5:R50)-1,10)+1) -> 45000 | S50: -8350
Q51: =INDEX($E$6:$E$15,INT((ROWS(Q$5:Q51)-1)/10)+1) -> 36650 | R51: =INDEX($M$6:$M$15,MOD(ROWS(R$5:R51)-1,10)+1) -> 49750 | S51: -13100
Q52: =INDEX($E$6:$E$15,INT((ROWS(Q$5:Q52)-1)/10)+1) -> 36650 | R52: =INDEX($M$6:$M$15,MOD(ROWS(R$5:R52)-1,10)+1) -> 22000 | S52: 14650
Q53: =INDEX($E$6:$E$15,INT((ROWS(Q$5:Q53)-1)/10)+1) -> 36650 | R53: =INDEX($M$6:$M$15,MOD(ROWS(R$5:R53)-1,10)+1) -> 26750 | S53: 9900
Q54: =INDEX($E$6:$E$15,INT((ROWS(Q$5:Q54)-1)/10)+1) -> 36650 | R54: =INDEX($M$6:$M$15,MOD(ROWS(R$5:R54)-1,10)+1) -> 29750 | S54: 6900
Q55: =INDEX($E$6:$E$15,INT((ROWS(Q$5:Q55)-1)/10)+1) -> 39525 | R55: =INDEX($M$6:$M$15,MOD(ROWS(R$5:R55)-1,10)+1) -> 54250 | S55: -14725
Q56: =INDEX($E$6:$E$15,INT((ROWS(Q$5:Q56)-1)/10)+1) -> 39525 | R56: =INDEX($M$6:$M$15,MOD(ROWS(R$5:R56)-1,10)+1) -> 31250 | S56: 8275
Q57: =INDEX($E$6:$E$15,INT((ROWS(Q$5:Q57)-1)/10)+1) -> 39525 | R57: =INDEX($M$6:$M$15,MOD(ROWS(R$5:R57)-1,10)+1) -> 34250 | S57: 5275
Q58: =INDEX($E$6:$E$15,INT((ROWS(Q$5:Q58)-1)/10)+1) -> 39525 | R58: =INDEX($M$6:$M$15,MOD(ROWS(R$5:R58)-1,10)+1) -> 39000 | S58: 525
Q59: =INDEX($E$6:$E$15,INT((ROWS(Q$5:Q59)-1)/10)+1) -> 39525 | R59: =INDEX($M$6:$M$15,MOD(ROWS(R$5:R59)-1,10)+1) -> 42000 | S59: -2475
Q60: =INDEX($E$6:$E$15,INT((ROWS(Q$5:Q60)-1)/10)+1) -> 39525 | R60: =INDEX($M$6:$M$15,MOD(ROWS(R$5:R60)-1,10)+1) -> 45000 | S60: -5475
Q61: =INDEX($E$6:$E$15,INT((ROWS(Q$5:Q61)-1)/10)+1) -> 39525 | R61: =INDEX($M$6:$M$15,MOD(ROWS(R$5:R61)-1,10)+1) -> 49750 | S61: -10225
Q62: =INDEX($E$6:$E$15,INT((ROWS(Q$5:Q62)-1)/10)+1) -> 39525 | R62: =INDEX($M$6:$M$15,MOD(ROWS(R$5:R62)-1,10)+1) -> 22000 | S62: 17525
Q63: =INDEX($E$6:$E$15,INT((ROWS(Q$5:Q63)-1)/10)+1) -> 39525 | R63: =INDEX($M$6:$M$15,MOD(ROWS(R$5:R63)-1,10)+1) -> 26750 | S63: 12775
Q64: =INDEX($E$6:$E$15,INT((ROWS(Q$5:Q64)-1)/10)+1) -> 39525 | R64: =INDEX($M$6:$M$15,MOD(ROWS(R$5:R64)-1,10)+1) -> 29750 | S64: 9775
Q65: =INDEX($E$6:$E$15,INT((ROWS(Q$5:Q65)-1)/10)+1) -> 42150 | R65: =INDEX($M$6:$M$15,MOD(ROWS(R$5:R65)-1,10)+1) -> 54250 | S65: -12100
Q66: =INDEX($E$6:$E$15,INT((ROWS(Q$5:Q66)-1)/10)+1) -> 42150 | R66: =INDEX($M$6:$M$15,MOD(ROWS(R$5:R66)-1,10)+1) -> 31250 | S66: 10900
Q67: =INDEX($E$6:$E$15,INT((ROWS(Q$5:Q67)-1)/10)+1) -> 42150 | R67: =INDEX($M$6:$M$15,MOD(ROWS(R$5:R67)-1,10)+1) -> 34250 | S67: 7900
Q68: =INDEX($E$6:$E$15,INT((ROWS(Q$5:Q68)-1)/10)+1) -> 42150 | R68: =INDEX($M$6:$M$15,MOD(ROWS(R$5:R68)-1,10)+1) -> 39000 | S68: 3150
Q69: =INDEX($E$6:$E$15,INT((ROWS(Q$5:Q69)-1)/10)+1) -> 42150 | R69: =INDEX($M$6:$M$15,MOD(ROWS(R$5:R69)-1,10)+1) -> 42000 | S69: 150
Q70: =INDEX($E$6:$E$15,INT((ROWS(Q$5:Q70)-1)/10)+1) -> 42150 | R70: =INDEX($M$6:$M$15,MOD(ROWS(R$5:R70)-1,10)+1) -> 45000 | S70: =Q70-R70 -> -2850
Q71: =INDEX($E$6:$E$15,INT((ROWS(Q$5:Q71)-1)/10)+1) -> 42150 | R71: =INDEX($M$6:$M$15,MOD(ROWS(R$5:R71)-1,10)+1) -> 49750 | S71: -7600
Q72: =INDEX($E$6:$E$15,INT((ROWS(Q$5:Q72)-1)/10)+1) -> 42150 | R72: =INDEX($M$6:$M$15,MOD(ROWS(R$5:R72)-1,10)+1) -> 22000 | S72: 20150
Q73: =INDEX($E$6:$E$15,INT((ROWS(Q$5:Q73)-1)/10)+1) -> 42150 | R73: =INDEX($M$6:$M$15,MOD(ROWS(R$5:R73)-1,10)+1) -> 26750 | S73: 15400
Q74: =INDEX($E$6:$E$15,INT((ROWS(Q$5:Q74)-1)/10)+1) -> 42150 | R74: =INDEX($M$6:$M$15,MOD(ROWS(R$5:R74)-1,10)+1) -> 29750 | S74: 12400
Q75: =INDEX($E$6:$E$15,INT((ROWS(Q$5:Q75)-1)/10)+1) -> 21375 | R75: =INDEX($M$6:$M$15,MOD(ROWS(R$5:R75)-1,10)+1) -> 54250 | S75: -32875
Q76: =INDEX($E$6:$E$15,INT((ROWS(Q$5:Q76)-1)/10)+1) -> 21375 | R76: =INDEX($M$6:$M$15,MOD(ROWS(R$5:R76)-1,10)+1) -> 31250 | S76: -9875
Q77: =INDEX($E$6:$E$15,INT((ROWS(Q$5:Q77)-1)/10)+1) -> 21375 | R77: =INDEX($M$6:$M$15,MOD(ROWS(R$5:R77)-1,10)+1) -> 34250 | S77: -12875
Q78: =INDEX($E$6:$E$15,INT((ROWS(Q$5:Q78)-1)/10)+1) -> 21375 | R78: =INDEX($M$6:$M$15,MOD(ROWS(R$5:R78)-1,10)+1) -> 39000 | S78: -17625
Q79: =INDEX($E$6:$E$15,INT((ROWS(Q$5:Q79)-1)/10)+1) -> 21375 | R79: =INDEX($M$6:$M$15,MOD(ROWS(R$5:R79)-1,10)+1) -> 42000 | S79: -20625
Q80: =INDEX($E$6:$E$15,INT((ROWS(Q$5:Q80)-1)/10)+1) -> 21375 | R80: =INDEX($M$6:$M$15,MOD(ROWS(R$5:R80)-1,10)+1) -> 45000 | S80: -23625
Q81: =INDEX($E$6:$E$15,INT((ROWS(Q$5:Q81)-1)/10)+1) -> 21375 | R81: =INDEX($M$6:$M$15,MOD(ROWS(R$5:R81)-1,10)+1) -> 49750 | S81: -28375
Q82: =INDEX($E$6:$E$15,INT((ROWS(Q$5:Q82)-1)/10)+1) -> 21375 | R82: =INDEX($M$6:$M$15,MOD(ROWS(R$5:R82)-1,10)+1) -> 22000 | S82: -625
Q83: =INDEX($E$6:$E$15,INT((ROWS(Q$5:Q83)-1)/10)+1) -> 21375 | R83: =INDEX($M$6:$M$15,MOD(ROWS(R$5:R83)-1,10)+1) -> 26750 | S83: -5375
Q84: =INDEX($E$6:$E$15,INT((ROWS(Q$5:Q84)-1)/10)+1) -> 21375 | R84: =INDEX($M$6:$M$15,MOD(ROWS(R$5:R84)-1,10)+1) -> 29750 | S84: -8375
Q85: =INDEX($E$6:$E$15,INT((ROWS(Q$5:Q85)-1)/10)+1) -> 24000 | R85: =INDEX($M$6:$M$15,MOD(ROWS(R$5:R85)-1,10)+1) -> 54250 | S85: -30250
Q86: =INDEX($E$6:$E$15,INT((ROWS(Q$5:Q86)-1)/10)+1) -> 24000 | R86: =INDEX($M$6:$M$15,MOD(ROWS(R$5:R86)-1,10)+1) -> 31250 | S86: -7250
Q87: =INDEX($E$6:$E$15,INT((ROWS(Q$5:Q87)-1)/10)+1) -> 24000 | R87: =INDEX($M$6:$M$15,MOD(ROWS(R$5:R87)-1,10)+1) -> 34250 | S87: -10250
Q88: =INDEX($E$6:$E$15,INT((ROWS(Q$5:Q88)-1)/10)+1) -> 24000 | R88: =INDEX($M$6:$M$15,MOD(ROWS(R$5:R88)-1,10)+1) -> 39000 | S88: -15000
Q89: =INDEX($E$6:$E$15,INT((ROWS(Q$5:Q89)-1)/10)+1) -> 24000 | R89: =INDEX($M$6:$M$15,MOD(ROWS(R$5:R89)-1,10)+1) -> 42000 | S89: -18000
Q90: =INDEX($E$6:$E$15,INT((ROWS(Q$5:Q90)-1)/10)+1) -> 24000 | R90: =INDEX($M$6:$M$15,MOD(ROWS(R$5:R90)-1,10)+1) -> 45000 | S90: -21000
Q91: =INDEX($E$6:$E$15,INT((ROWS(Q$5:Q91)-1)/10)+1) -> 24000 | R91: =INDEX($M$6:$M$15,MOD(ROWS(R$5:R91)-1,10)+1) -> 49750 | S91: -25750
Q92: =INDEX($E$6:$E$15,INT((ROWS(Q$5:Q92)-1)/10)+1) -> 24000 | R92: =INDEX($M$6:$M$15,MOD(ROWS(R$5:R92)-1,10)+1) -> 22000 | S92: 2000
Q93: =INDEX($E$6:$E$15,INT((ROWS(Q$5:Q93)-1)/10)+1) -> 24000 | R93: =INDEX($M$6:$M$15,MOD(ROWS(R$5:R93)-1,10)+1) -> 26750 | S93: -2750
Q94: =INDEX($E$6:$E$15,INT((ROWS(Q$5:Q94)-1)/10)+1) -> 24000 | R94: =INDEX($M$6:$M$15,MOD(ROWS(R$5:R94)-1,10)+1) -> 29750 | S94: -5750
Q95: =INDEX($E$6:$E$15,INT((ROWS(Q$5:Q95)-1)/10)+1) -> 26875 | R95: =INDEX($M$6:$M$15,MOD(ROWS(R$5:R95)-1,10)+1) -> 54250 | S95: -27375
Q96: =INDEX($E$6:$E$15,INT((ROWS(Q$5:Q96)-1)/10)+1) -> 26875 | R96: =INDEX($M$6:$M$15,MOD(ROWS(R$5:R96)-1,10)+1) -> 31250 | S96: -4375
Q97: =INDEX($E$6:$E$15,INT((ROWS(Q$5:Q97)-1)/10)+1) -> 26875 | R97: =INDEX($M$6:$M$15,MOD(ROWS(R$5:R97)-1,10)+1) -> 34250 | S97: -7375
Q98: =INDEX($E$6:$E$15,INT((ROWS(Q$5:Q98)-1)/10)+1) -> 26875 | R98: =INDEX($M$6:$M$15,MOD(ROWS(R$5:R98)-1,10)+1) -> 39000 | S98: -12125
Q99: =INDEX($E$6:$E$15,INT((ROWS(Q$5:Q99)-1)/10)+1) -> 26875 | R99: =INDEX($M$6:$M$15,MOD(ROWS(R$5:R99)-1,10)+1) -> 42000 | S99: -15125
Q100: =INDEX($E$6:$E$15,INT((ROWS(Q$5:Q100)-1)/10)+1) -> 26875 | R100: =INDEX($M$6:$M$15,MOD(ROWS(R$5:R100)-1,10)+1) -> 45000 | S100: -18125
Q101: =INDEX($E$6:$E$15,INT((ROWS(Q$5:Q101)-1)/10)+1) -> 26875 | R101: =INDEX($M$6:$M$15,MOD(ROWS(R$5:R101)-1,10)+1) -> 49750 | S101: -22875
Q102: =INDEX($E$6:$E$15,INT((ROWS(Q$5:Q102)-1)/10)+1) -> 26875 | R102: =INDEX($M$6:$M$15,MOD(ROWS(R$5:R102)-1,10)+1) -> 22000 | S102: 4875
Q103: =INDEX($E$6:$E$15,INT((ROWS(Q$5:Q103)-1)/10)+1) -> 26875 | R103: =INDEX($M$6:$M$15,MOD(ROWS(R$5:R103)-1,10)+1) -> 26750 | S103: 125
Q104: =INDEX($E$6:$E$15,INT((ROWS(Q$5:Q104)-1)/10)+1) -> 26875 | R104: =INDEX($M$6:$M$15,MOD(ROWS(R$5:R104)-1,10)+1) -> 29750 | S104: -2875
P106: Video Reference for incrementing Numbers:
P107: Excel Magic Trick 692: More About Incrementing Numbers In Formulas
P108: https://www.youtube.com/watch?v=AIQbJAPMrEg
P109: Excel Magic Trick 650: Formula To Extract All Rows In Data Set Into 1 Column INDEX function
P110: https://www.youtube.com/watch?v=KtIOwYNkUdE

Sheet CI Sigma Known, z
A1: Two cities, Bradford and Kane are separated only by the Conewango River.
A2: A random sample of annual incomes from both cities was taken.
A3: Sigma (Pop SD) is known from past data to be: Bradford s = $6000, Kane s = $7000.
A4: Build a 95% Confidence Interval for the difference between the two city population annual income means
A6: Sample 1 | C6: Sample 2 | F6: Sample 1 | G6: Sample 2
A7: Bradford | C7: Kane | E7: City | F7: =A7 -> Bradford | G7: =C7 -> Kane
A8: 30316 | C8: 29652 | E8: Sigma = Pop SD = s =
A9: 38832 | C9: 30613 | E9: Sample Size = n = | I9: =IF(_xlfn.ISFORMULA(G9)," "&_xlfn.FORMULATEXT(G9),"") -> 
A10: 44320 | C10: 31617 | E10: Sample Mean = Xbar
A11: 34076 | C11: 33665 | E11: Pop Variance = s2 =
A12: 27061 | C12: 37109 | E12: Pop Variance/ Sample Size = s2/n =
A13: 37948 | C13: 35487
A14: 50215 | C14: 28702 | E14: Population Difference = m1 - m2
A15: 33458 | C15: 28368 | E15: Point Estimate for Pop. Difference ==>> Xbar1 - Xbar2 = | H15: =IF(_xlfn.ISFORMULA(F15)," "&_xlfn.FORMULATEXT(F15),"") -> 
A16: 39553 | C16: 20866 | E16: Confidence Level
A17: 31134 | C17: 31960 | E17: Alpha | H17: =IF(_xlfn.ISFORMULA(F17)," "&_xlfn.FORMULATEXT(F17),"") -> 
A18: 35329 | C18: 38462 | E18: Alpha/2
A19: 43280 | C19: 49736 | E19: Standard Error = | L19: Standard Deviation of the Sampling Distribution of Xbar1 - Xbar2
A20: 44657 | C20: 29799 | E20: Z Upper
A21: 40339 | C21: 36454 | E21: Margin of Error | L21: Margin of Error = Z Upper * SE
A22: 38522 | C22: 26958 | E22: Lower Limit | L22: Z Upper +/- Margin of Error
A23: 36060 | C23: 35762 | E23: Upper Limit
A24: 39703 | C24: 39513
A25: 35383 | C25: 30460 | E25: =IF(F23="","","We are "&TEXT(F16,"0%")&" sure that the population difference between the incomes in "&A7&" and "&C7&" are between "&DOLLAR(F22,0)&" and "&DOLLAR(F23,0)) -> 
A26: 36913 | C26: 42200 | E26: =IF(F23="","","The difference between Bradford and Kane Annual Income is about "&DOLLAR(F15,0)&" with a margin of error of "&DOLLAR(F21,0)) -> 
A27: 22736 | C27: 22003 | E27: =IF(F23="","","If we constructed 100 confidence intervals, about 95 of them would contain the population difference and 5 would not.") -> 
A28: 39523 | C28: 40513
A29: 28428 | C29: 34304
A30: 35660 | C30: 33118
A31: 37371 | C31: 30886
A32: 39667 | C32: 43729
A33: 34245 | C33: 33613
A34: 34026 | C34: 41491
A35: 37524 | C35: 44969
A36: 44202 | C36: 38931
A37: 45706 | C37: 26953
A38: 35585 | C38: 41270
A39: 33164 | C39: 39754
A40: 35804 | C40: 39949
A41: 39773 | C41: 35829
A42: 40127 | C42: 40514
A43: 45767
A44: 47522
A45: 48127
A46: 33478
A47: 44866

Sheet CI Sigma Known, z (an)
A1: Two cities, Bradford and Kane are separated only by the Conewango River.
A2: A random sample of annual incomes from both cities was taken.
A3: Sigma (Pop SD) is known from past data to be: Bradford s = $6000, Kane s = $7000.
A4: Build a 95% Confidence Interval for the difference between the two city population annual income means
A6: Sample 1 | C6: Sample 2 | F6: Sample 1 | G6: Sample 2
A7: Bradford | C7: Kane | E7: City | F7: =A7 -> Bradford | G7: =C7 -> Kane
A8: 30316 | C8: 29652 | E8: Sigma = Pop SD = s = | F8: 6000 | G8: 7000
A9: 38832 | C9: 30613 | E9: Sample Size = n = | F9: =COUNT(A8:A47) -> 40 | G9: =COUNT(C8:C42) -> 35 | I9: =IF(_xlfn.ISFORMULA(G9)," "&_xlfn.FORMULATEXT(G9),"") -> =COUNT(C8:C42)
A10: 44320 | C10: 31617 | E10: Sample Mean = Xbar | F10: =AVERAGE(A8:A47) -> 38010 | G10: =AVERAGE(C8:C42) -> 35005.97143 | I10: =AVERAGE(C8:C42)
A11: 34076 | C11: 33665 | E11: Pop Variance = s2 = | F11: =F8^2 -> 36000000 | G11: =G8^2 -> 49000000 | I11: =G8^2
A12: 27061 | C12: 37109 | E12: Pop Variance/ Sample Size = s2/n = | F12: =F11/F9 -> 900000 | G12: =G11/G9 -> 1400000 | I12: =G11/G9
A13: 37948 | C13: 35487
A14: 50215 | C14: 28702 | E14: Population Difference = m1 - m2
A15: 33458 | C15: 28368 | E15: Point Estimate for Pop. Difference ==>> Xbar1 - Xbar2 = | F15: =F10-G10 -> 3004.028571 | H15: =IF(_xlfn.ISFORMULA(F15)," "&_xlfn.FORMULATEXT(F15),"") -> =F10-G10
A16: 39553 | C16: 20866 | E16: Confidence Level | F16: 0.95
A17: 31134 | C17: 31960 | E17: Alpha | F17: =1-F16 -> 0.05 | H17: =IF(_xlfn.ISFORMULA(F17)," "&_xlfn.FORMULATEXT(F17),"") -> =1-F16
A18: 35329 | C18: 38462 | E18: Alpha/2 | F18: =F17/2 -> 0.025 | H18: =F17/2
A19: 43280 | C19: 49736 | E19: Standard Error = | F19: =SQRT(SUM(F12:G12)) -> 1516.575089 | H19: =SQRT(SUM(F12:G12)) | L19: Standard Deviation of the Sampling Distribution of Xbar1 - Xbar2
A20: 44657 | C20: 29799 | E20: Z Upper | F20: =_xlfn.NORM.S.INV(1-F18) -> 1.959963985 | H20: =NORM.S.INV(1-F18)
A21: 40339 | C21: 36454 | E21: Margin of Error | F21: =F20*F19 -> 2972.432554 | H21: =F20*F19 | L21: Margin of Error = Z Upper * SE
A22: 38522 | C22: 26958 | E22: Lower Limit | F22: =F15-F21 -> 31.59601751 | H22: =F15-F21 | L22: Z Upper +/- Margin of Error
A23: 36060 | C23: 35762 | E23: Upper Limit | F23: =F15+F21 -> 5976.461125 | H23: =F15+F21
A24: 39703 | C24: 39513
A25: 35383 | C25: 30460 | E25: =IF(F23="","","We are "&TEXT(F16,"0%")&" sure that the population difference between the incomes in "&A7&" and "&C7&" are between "&DOLLAR(F22,0)&" and "&DOLLAR(F23,0)) -> We are 95% sure that the population difference between the incomes in Bradford and Kane are between $32 and $5,976
A26: 36913 | C26: 42200 | E26: =IF(F23="","","The difference between Bradford and Kane Annual Income is about "&DOLLAR(F15,0)&" with a margin of error of "&DOLLAR(F21,0)) -> The difference between Bradford and Kane Annual Income is about $3,004 with a margin of error of $2,972
A27: 22736 | C27: 22003 | E27: =IF(F23="","","If we constructed 100 confidence intervals, about 95 of them would contain the population difference and 5 would not.") -> If we constructed 100 confidence intervals, about 95 of them would contain the population difference and 5 would not.
A28: 39523 | C28: 40513
A29: 28428 | C29: 34304
A30: 35660 | C30: 33118
A31: 37371 | C31: 30886
A32: 39667 | C32: 43729
A33: 34245 | C33: 33613
A34: 34026 | C34: 41491
A35: 37524 | C35: 44969
A36: 44202 | C36: 38931
A37: 45706 | C37: 26953
A38: 35585 | C38: 41270
A39: 33164 | C39: 39754
A40: 35804 | C40: 39949
A41: 39773 | C41: 35829
A42: 40127 | C42: 40514
A43: 45767
A44: 47522
A45: 48127
A46: 33478
A47: 44866

Sheet HT Sigma Known, z
A1: Two cities, Bradford and Kane are separated only by the Conewango River.
A2: A random sample of annual incomes from both cities was taken.
A3: Sigma (Pop SD) is known from past data to be: Bradford s = $6000, Kane s = $7000.
A4: At an alpha of 5% can we conclude that Bradford's Annual Income is more than Kane's? | H4: >
A6: Sample 1 | C6: Sample 2 | F6: Sample 1 | G6: Sample 2
A7: Bradford | C7: Kane | E7: Cities | F7: =A7 -> Bradford | G7: =C7 -> Kane
A8: 30316 | C8: 29652 | E8: Sigma = Pop SD = s = | I8: Formulas for Sample 2
A9: 38832 | C9: 30613 | E9: Sample Mean = Xbar | I9: =IF(G9="",""," "&_xlfn.FORMULATEXT(G9)) -> 
A10: 44320 | C10: 31617 | E10: Count = n =
A11: 34076 | C11: 33665 | E11: Pop Variance
A12: 27061 | C12: 37109 | E12: Variance/n
A13: 37948 | C13: 35487
A14: 50215 | C14: 28702 | E14: Step 1: List Null and Alternative Hypotheses
A15: 33458 | C15: 28368 | E15: H0 : m1 - m2
A16: 39553 | C16: 20866 | E16: Ha : m1 - m2
A17: 31134 | C17: 31960
A18: 35329 | C18: 38462 | E18: Hypothesized Pop Difference
A19: 43280 | C19: 49736
A20: 44657 | C20: 29799 | E20: Step 2: Pick Level of Significance = Alpha (Risk that H0 is TRUE, but we Reject it)
A21: 40339 | C21: 36454 | E21: Alpha
A22: 38522 | C22: 26958
A23: 36060 | C23: 35762 | E23: Step 3: Sample, Calculate, Draw Picture, Calculate Test Statistic
A24: 39703 | C24: 39513 | E24: SE | H24: =IF(F24="",""," "&_xlfn.FORMULATEXT(F24)) ->  | K24: SQRT(Var1/n1 + Var2/n2) | N24: Standard Deviation of the Sampling Distribution of Xbar1 - Xbar2
A25: 35383 | C25: 30460 | E25: Test Statistic | H25: =IF(F25="",""," "&_xlfn.FORMULATEXT(F25)) ->  | K25: (Xbar1-Xbar2-D0)/SE
A26: 36913 | C26: 42200
A27: 22736 | C27: 22003 | E27: Step 4: Create Rules for Critical Value and p-value
A28: 39523 | C28: 40513 | E28: If our calculated Test Statistic is greater than our Critical Value, We Reject H0 and Accept Ha, Otherwise, We Fail to Reject H0
A29: 28428 | C29: 34304 | E29: Critical Value | H29: =IF(F29="",""," "&_xlfn.FORMULATEXT(F29)) -> 
A30: 35660 | C30: 33118 | E30: If the p-value is smaller than our Alpha, We Reject H0 and Accept Ha, Otherwise, We Fail to Reject H0
A31: 37371 | C31: 30886 | E31: p-value | H31: =IF(F31="",""," "&_xlfn.FORMULATEXT(F31)) -> 
A32: 39667 | C32: 43729
A33: 34245 | C33: 33613 | E33: Step 5: Write Conclusion
A34: 34026 | C34: 41491 | E34: =IF(F31="","","Because the calculated Test Statistic is greater than our Critical Value, We Reject H0 and Accept Ha. It is reasonable to assume that the Mean Income in Bradford is more than in Kane.") -> 
A35: 37524 | C35: 44969 | E35: =IF(F31="","","Because the p-values is smaller than the alpha, We Reject H0 and Accept Ha. It is reasonable to assume that the Mean Income in Bradford is more than in Kane.") -> 
A36: 44202 | C36: 38931 | E36: =IF(F31="","","The sample evidence seems to suggest that the Mean Income in Bradford is more than in Kane.") -> 
A37: 45706 | C37: 26953 | E37: =IF(F31="","","We do run a 5% risk that we have rejected H0 even though it was true.") -> 
A38: 35585 | C38: 41270
A39: 33164 | C39: 39754
A40: 35804 | C40: 39949
A41: 39773 | C41: 35829
A42: 40127 | C42: 40514
A43: 45767
A44: 47522
A45: 48127
A46: 33478
A47: 44866

Sheet HT Sigma Known, z (an)
A1: Two cities, Bradford and Kane are separated only by the Conewango River.
A2: A random sample of annual incomes from both cities was taken.
A3: Sigma (Pop SD) is known from past data to be: Bradford s = $6000, Kane s = $7000.
A4: At an alpha of 5% can we conclude that Bradford's Annual Income is more than Kane's? | H4: >
A6: Sample 1 | C6: Sample 2 | F6: Sample 1 | G6: Sample 2
A7: Bradford | C7: Kane | E7: Cities | F7: =A7 -> Bradford | G7: =C7 -> Kane
A8: 30316 | C8: 29652 | E8: Sigma = Pop SD = s = | F8: 6000 | G8: 7000 | I8: Formulas for Sample 2
A9: 38832 | C9: 30613 | E9: Sample Mean = Xbar | F9: =AVERAGE(A8:A47) -> 38010 | G9: =AVERAGE(C8:C42) -> 35005.97143 | I9: =IF(G9="",""," "&_xlfn.FORMULATEXT(G9)) -> =AVERAGE(C8:C42)
A10: 44320 | C10: 31617 | E10: Count = n = | F10: =COUNT(A8:A47) -> 40 | G10: =COUNT(C8:C42) -> 35 | I10: =COUNT(C8:C42)
A11: 34076 | C11: 33665 | E11: Pop Variance | F11: =F8^2 -> 36000000 | G11: =G8^2 -> 49000000 | I11: =G8^2
A12: 27061 | C12: 37109 | E12: Variance/n | F12: =F11/F10 -> 900000 | G12: =G11/G10 -> 1400000 | I12: =G11/G10
A13: 37948 | C13: 35487
A14: 50215 | C14: 28702 | E14: Step 1: List Null and Alternative Hypotheses
A15: 33458 | C15: 28368 | E15: H0 : m1 - m2 | F15: <= | G15: =$F$18 -> 0
A16: 39553 | C16: 20866 | E16: Ha : m1 - m2 | F16: > | G16: 0
A17: 31134 | C17: 31960
A18: 35329 | C18: 38462 | E18: Hypothesized Pop Difference | F18: 0
A19: 43280 | C19: 49736
A20: 44657 | C20: 29799 | E20: Step 2: Pick Level of Significance = Alpha (Risk that H0 is TRUE, but we Reject it)
A21: 40339 | C21: 36454 | E21: Alpha | F21: 0.05
A22: 38522 | C22: 26958
A23: 36060 | C23: 35762 | E23: Step 3: Sample, Calculate, Draw Picture, Calculate Test Statistic
A24: 39703 | C24: 39513 | E24: SE | F24: =SQRT(SUM(F12:G12)) -> 1516.575089 | H24: =IF(F24="",""," "&_xlfn.FORMULATEXT(F24)) -> =SQRT(SUM(F12:G12)) | K24: SQRT(Var1/n1 + Var2/n2) | N24: Standard Deviation of the Sampling Distribution of Xbar1 - Xbar2
A25: 35383 | C25: 30460 | E25: Test Statistic | F25: =(F9-G9-F18)/F24 -> 1.980797782 | H25: =IF(F25="",""," "&_xlfn.FORMULATEXT(F25)) -> =(F9-G9-F18)/F24 | K25: (Xbar1-Xbar2-D0)/SE
A26: 36913 | C26: 42200
A27: 22736 | C27: 22003 | E27: Step 4: Create Rules for Critical Value and p-value
A28: 39523 | C28: 40513 | E28: If our calculated Test Statistic is greater than our Critical Value, We Reject H0 and Accept Ha, Otherwise, We Fail to Reject H0
A29: 28428 | C29: 34304 | E29: Critical Value | F29: =_xlfn.NORM.S.INV(1-F21) -> 1.644853627 | H29: =IF(F29="",""," "&_xlfn.FORMULATEXT(F29)) -> =NORM.S.INV(1-F21)
A30: 35660 | C30: 33118 | E30: If the p-value is smaller than our Alpha, We Reject H0 and Accept Ha, Otherwise, We Fail to Reject H0
A31: 37371 | C31: 30886 | E31: p-value | F31: =1-_xlfn.NORM.S.DIST(F25,1) -> 0.02380697786 | H31: =IF(F31="",""," "&_xlfn.FORMULATEXT(F31)) -> =1-NORM.S.DIST(F25,1)
A32: 39667 | C32: 43729
A33: 34245 | C33: 33613 | E33: Step 5: Write Conclusion
A34: 34026 | C34: 41491 | E34: =IF(F31="","","Because the calculated Test Statistic is greater than our Critical Value, We Reject H0 and Accept Ha. It is reasonable to assume that the Mean Income in Bradford is more than in Kane.") -> Because the calculated Test Statistic is greater than our Critical Value, We Reject H0 and Accept Ha. It is reasonable to assume that the Mean Income in Bradford is more than in Kane.
A35: 37524 | C35: 44969 | E35: =IF(F31="","","Because the p-values is smaller than the alpha, We Reject H0 and Accept Ha. It is reasonable to assume that the Mean Income in Bradford is more than in Kane.") -> Because the p-values is smaller than the alpha, We Reject H0 and Accept Ha. It is reasonable to assume that the Mean Income in Bradford is more than in Kane.
A36: 44202 | C36: 38931 | E36: =IF(F31="","","The sample evidence seems to suggest that the Mean Income in Bradford is more than in Kane.") -> The sample evidence seems to suggest that the Mean Income in Bradford is more than in Kane.
A37: 45706 | C37: 26953 | E37: =IF(F31="","","We do run a 5% risk that we have rejected H0 even though it was true.") -> We do run a 5% risk that we have rejected H0 even though it was true.
A38: 35585 | C38: 41270
A39: 33164 | C39: 39754
A40: 35804 | C40: 39949
A41: 39773 | C41: 35829 | E41: z-Test: Two Sample for Means
A42: 40127 | C42: 40514
A43: 45767 | F43: Bradford | G43: Kane
A44: 47522 | E44: Mean | F44: 38010 | G44: 35005.97143
A45: 48127 | E45: Known Variance | F45: 36000000 | G45: 49000000
A46: 33478 | E46: Observations | F46: 40 | G46: 35
A47: 44866 | E47: Hypothesized Mean Difference | F47: 0
E48: z | F48: 1.980797782
E49: P(Z<=z) one-tail | F49: 0.02380697786
E50: z Critical one-tail | F50: 1.644853627
E51: P(Z<=z) two-tail | F51: 0.04761395571
E52: z Critical two-tail | F52: 1.959963985

Sheet CI Sigma NOT Known, t
A1: A recent EPA study compared the highway fuel economy of domestic and imported compact cars
A2: ="A sample of "&COUNT(A9:A28)&" imported compact cars revealed a mean of "&ROUND(AVERAGE(A9:A28),2)&" MPG with a standard deviation of "&ROUND(_xlfn.STDEV.S(A9:A28),2)&" MPG" -> A sample of 20 imported compact cars revealed a mean of 36.52 MPG with a standard deviation of 3.43 MPG
A3: ="A sample of "&COUNT(B9:B28)&" domestic compact cars revealed a mean of "&ROUND(AVERAGE(B9:B28),2)&" MPG with a standard deviation of "&ROUND(_xlfn.STDEV.S(B9:B28),2)&" MPG" -> A sample of 20 domestic compact cars revealed a mean of 33.83 MPG with a standard deviation of 2.33 MPG
A4: Samples are independent, Distributions for samples are normal .
A5: At the 95% Confidence Level, construct a Confidence Interval for the Population Difference between Imported Compact Auto MPG and Domestic Compact Auto MPG
A7: Sample 1 | B7: Sample 2 | E7: Sample 1 | F7: Sample 2
A8: Imported MPG | B8: Domestic MPG | E8: Imported MPG | F8: Domestic MPG | H8: Sample 2 Formulas
A9: 31.07 | B9: 35.73 | D9: Sample Size = n = | H9: =IF(_xlfn.ISFORMULA(F9)," "&_xlfn.FORMULATEXT(F9),"") -> 
A10: 38.71 | B10: 35.43 | D10: n -1 =
A11: 34.37 | B11: 34.04 | D11: Sample Mean = Xbar = | G11: MPG
A12: 37.47 | B12: 33.01 | D12: Sample Standard Deviation = s = | G12: MPG
A13: 40.7 | B13: 34.81 | D13: Sample Variance = SVar = s^2 =
A14: 32.98 | B14: 34.97 | D14: SVar/n = S^2/n =
A15: 34.76 | B15: 28.35
A16: 40.61 | B16: 31.87 | D16: Point Estimate of μ1 - μ2 = Xbar1 - Xbar2 = | G16: Sample 2 Formulas
A17: 35.54 | B17: 34.78 | D17: Point Estimate = Xbar1 - Xbar2 = | F17: MPG | G17: =IF(_xlfn.ISFORMULA(E17)," "&_xlfn.FORMULATEXT(E17),"") -> 
A18: 37.78 | B18: 31.27 | D18: SE = | F18: MPG
A19: 32.47 | B19: 38.23 | D19: Degrees of Freedom = df =
A20: 36 | B20: 31.11 | D20: Confidence Level/Coefficient =
A21: 36.08 | B21: 33.83 | D21: Alpha = | G21: =IF(_xlfn.ISFORMULA(E21)," "&_xlfn.FORMULATEXT(E21),"") -> 
A22: 31.15 | B22: 33.44 | D22: Alpha/2 =
A23: 37.65 | B23: 34.34 | D23: Upper t = ta/2 = # SD =
A24: 44.14 | B24: 38.07 | D24: Margin of Error = | F24: MPG
A25: 33.81 | B25: 33.88 | D25: T Upper = | F25: MPG
A26: 37.93 | B26: 31.58 | D26: T Lower = | F26: MPG
A27: 40.66 | B27: 35.06
A28: 36.49 | B28: 32.7 | D28: =IF(E26="","","We are "&TEXT($E$20,"0%")&" that the population difference between Imported Compact Auto MPG and") -> 
D29: =IF(E26="","","Domestic Compact Auto MPG is between "&ROUND($E$25,2)&" and "&ROUND($E$26,2)&" MPG") -> 
D31: =IF(E26="","","We are "&TEXT($E$20,"0%")&" that the population difference between Imported Compact Auto MPG and") -> 
D32: =IF(E26="","","Domestic Compact Auto MPG is "&ROUND(E17,2)&" with a margin of error of "&ROUND(E24,2)&" MPG") -> 
D34: =IF(E26="","","We do run a 5% risk that our population difference is not in our interval.") -> 

Sheet CI Sigma NOT Known, t (an)
A1: A recent EPA study compared the highway fuel economy of domestic and imported compact cars
A2: ="A sample of "&COUNT(A9:A28)&" imported compact cars revealed a mean of "&ROUND(AVERAGE(A9:A28),2)&" MPG with a standard deviation of "&ROUND(_xlfn.STDEV.S(A9:A28),2)&" MPG" -> A sample of 20 imported compact cars revealed a mean of 36.52 MPG with a standard deviation of 3.43 MPG
A3: ="A sample of "&COUNT(B9:B28)&" domestic compact cars revealed a mean of "&ROUND(AVERAGE(B9:B28),2)&" MPG with a standard deviation of "&ROUND(_xlfn.STDEV.S(B9:B28),2)&" MPG" -> A sample of 20 domestic compact cars revealed a mean of 33.83 MPG with a standard deviation of 2.33 MPG
A4: Samples are independent, Distributions for samples are normal .
A5: At the 95% Confidence Level, construct a Confidence Interval for the Population Difference between Imported Compact Auto MPG and Domestic Compact Auto MPG
A7: Sample 1 | B7: Sample 2 | E7: Sample 1 | F7: Sample 2
A8: Imported MPG | B8: Domestic MPG | E8: Imported MPG | F8: Domestic MPG | H8: Sample 2 Formulas
A9: 31.07 | B9: 35.73 | D9: Sample Size = n = | E9: =COUNT(A9:A28) -> 20 | F9: =COUNT(B9:B28) -> 20 | H9: =IF(_xlfn.ISFORMULA(F9)," "&_xlfn.FORMULATEXT(F9),"") -> =COUNT(B9:B28)
A10: 38.71 | B10: 35.43 | D10: n -1 = | E10: =E9-1 -> 19 | F10: =F9-1 -> 19 | H10: =F9-1
A11: 34.37 | B11: 34.04 | D11: Sample Mean = Xbar = | E11: =AVERAGE(A9:A28) -> 36.5185 | F11: =AVERAGE(B9:B28) -> 33.825 | G11: MPG | H11: =AVERAGE(B9:B28)
A12: 37.47 | B12: 33.01 | D12: Sample Standard Deviation = s = | E12: =_xlfn.STDEV.S(A9:A28) -> 3.432956797 | F12: =_xlfn.STDEV.S(B9:B28) -> 2.3337016 | G12: MPG | H12: =STDEV.S(B9:B28)
A13: 40.7 | B13: 34.81 | D13: Sample Variance = SVar = s^2 = | E13: =E12^2 -> 11.78519237 | F13: =F12^2 -> 5.446163158 | H13: =F12^2
A14: 32.98 | B14: 34.97 | D14: SVar/n = S^2/n = | E14: =E13/E9 -> 0.5892596184 | F14: =F13/F9 -> 0.2723081579 | H14: =F13/F9
A15: 34.76 | B15: 28.35
A16: 40.61 | B16: 31.87 | D16: Point Estimate of μ1 - μ2 = Xbar1 - Xbar2 = | G16: Sample 2 Formulas
A17: 35.54 | B17: 34.78 | D17: Point Estimate = Xbar1 - Xbar2 = | E17: =E11-F11 -> 2.6935 | F17: MPG | G17: =IF(_xlfn.ISFORMULA(E17)," "&_xlfn.FORMULATEXT(E17),"") -> =E11-F11
A18: 37.78 | B18: 31.27 | D18: SE = | E18: =SQRT(SUM(E14:F14)) -> 0.928206753 | F18: MPG | G18: =SQRT(SUM(E14:F14))
A19: 32.47 | B19: 38.23 | D19: Degrees of Freedom = df = | E19: =SUM(E14:F14)^2/SUM(E14^2/E10,F14^2/F10) -> 33.47032954 | G19: =SUM(E14:F14)^2/SUM(E14^2/E10,F14^2/F10)
A20: 36 | B20: 31.11 | D20: Confidence Level/Coefficient = | E20: 0.95
A21: 36.08 | B21: 33.83 | D21: Alpha = | E21: =1-E20 -> 0.05 | G21: =IF(_xlfn.ISFORMULA(E21)," "&_xlfn.FORMULATEXT(E21),"") -> =1-E20
A22: 31.15 | B22: 33.44 | D22: Alpha/2 = | E22: =E21/2 -> 0.025 | G22: =E21/2
A23: 37.65 | B23: 34.34 | D23: Upper t = ta/2 = # SD = | E23: =_xlfn.T.INV(1-E22,E19) -> 2.034515297 | G23: =T.INV(1-E22,E19)
A24: 44.14 | B24: 38.07 | D24: Margin of Error = | E24: =E23*E18 -> 1.888450838 | F24: MPG | G24: =E23*E18
A25: 33.81 | B25: 33.88 | D25: T Upper = | E25: =E17+E24 -> 4.581950838 | F25: MPG | G25: =E17+E24
A26: 37.93 | B26: 31.58 | D26: T Lower = | E26: =E17-E24 -> 0.8050491618 | F26: MPG | G26: =E17-E24
A27: 40.66 | B27: 35.06
A28: 36.49 | B28: 32.7 | D28: =IF(E26="","","We are "&TEXT($E$20,"0%")&" that the population difference between Imported Compact Auto MPG and") -> We are 95% that the population difference between Imported Compact Auto MPG and
D29: =IF(E26="","","Domestic Compact Auto MPG is between "&ROUND($E$25,2)&" and "&ROUND($E$26,2)&" MPG") -> Domestic Compact Auto MPG is between 4.58 and 0.81 MPG
D31: =IF(E26="","","We are "&TEXT($E$20,"0%")&" that the population difference between Imported Compact Auto MPG and") -> We are 95% that the population difference between Imported Compact Auto MPG and
D32: =IF(E26="","","Domestic Compact Auto MPG is "&ROUND(E17,2)&" with a margin of error of "&ROUND(E24,2)&" MPG") -> Domestic Compact Auto MPG is 2.69 with a margin of error of 1.89 MPG
D34: =IF(E26="","","We do run a 5% risk that our population difference is not in our interval.") -> We do run a 5% risk that our population difference is not in our interval.

Sheet HT Sigma NOT Known, t
A1: A recent EPA study compared the highway fuel economy of domestic and imported compact cars
A2: ="A sample of "&COUNT(A9:A28)&" domestic compact cars revealed a mean of "&ROUND(AVERAGE(A9:A28),2)&" MPG with a standard deviation of "&ROUND(_xlfn.STDEV.S(A9:A28),2)&" MPG" -> A sample of 20 domestic compact cars revealed a mean of 33.83 MPG with a standard deviation of 2.33 MPG
A3: ="A sample of "&COUNT(B9:B28)&" imported compact cars revealed a mean of "&ROUND(AVERAGE(B9:B28),2)&" MPG with a standard deviation of "&ROUND(_xlfn.STDEV.S(B9:B28),2)&" MPG" -> A sample of 20 imported compact cars revealed a mean of 36.52 MPG with a standard deviation of 3.43 MPG
A4: Samples are independent, Distributions for samples are normal .
A5: At the .05 significance level can the EPA conclude that the MPG is higher on the imported cars? | G5: <
A7: Sample 1 | B7: Sample 2 | E7: Sample 1 | F7: Sample 2
A8: Domestic MPG | B8: Imported MPG | D8: Car Type | E8: Domestic MPG | F8: Imported MPG | H8: Sample 2 Formulas
A9: 35.73 | B9: 31.07 | D9: Sample Size = n = | H9: =IF(F9="",""," "&_xlfn.FORMULATEXT(F9)) -> 
A10: 35.43 | B10: 38.71 | D10: n -1 =
A11: 34.04 | B11: 34.37 | D11: Sample Mean = Xbar = | G11: MPG
A12: 33.01 | B12: 37.47 | D12: Sample Standard Deviation = s = | G12: MPG
A13: 34.81 | B13: 40.7 | D13: Sample Variance = SVar = s^2 =
A14: 34.97 | B14: 32.98 | D14: Svar/n = S^2/n =
A15: 28.35 | B15: 34.76
A16: 31.87 | B16: 40.61 | D16: Step 1: List Null and Alternative Hypotheses
A17: 34.78 | B17: 35.54 | D17: H0 : m1 - m2
A18: 31.27 | B18: 37.78 | D18: Ha : m1 - m2
A19: 38.23 | B19: 32.47
A20: 31.11 | B20: 36 | D20: Hypothesized Pop Difference
A21: 33.83 | B21: 36.08
A22: 33.44 | B22: 31.15 | D22: Step 2: Pick Level of Significance = Alpha (Risk that H0 is TRUE, but we Reject it)
A23: 34.34 | B23: 37.65 | D23: Alpha | F23: Risk that we Reject H0, even though it was TRUE (Type I Error)
A24: 38.07 | B24: 44.14
A25: 33.88 | B25: 33.81 | D25: Step 3: Sample, Calculate, Draw Picture, Calculate Test Statistic
A26: 31.58 | B26: 37.93 | D26: SE | G26: =IF(E26="",""," "&_xlfn.FORMULATEXT(E26)) -> 
A27: 35.06 | B27: 40.66 | D27: Test Statistic = t = | G27: =IF(E27="",""," "&_xlfn.FORMULATEXT(E27)) ->  | J27: # of SD
A28: 32.7 | B28: 36.49 | D28: Degrees of Freedom = df = | G28: =IF(E28="",""," "&_xlfn.FORMULATEXT(E28)) -> 
D30: Step 4: Create Rules for Critical Value and p-value
D31: If Test Statistic is past our hurdle on the low end, we reject H0 and Accept Ha, Otherwise we fail to reject H0
D32: Critical Value | G32: =IF(E32="",""," "&_xlfn.FORMULATEXT(E32)) -> 
D33: If p-value is smaller than our Alpha, we reject H0 and accept Ha, otherwise we fail to reject H0.
D34: p-value | G34: =IF(E34="",""," "&_xlfn.FORMULATEXT(E34)) -> 
D36: Step 5: Conclude
D37: =IF(E34="","","The statistical evidence strongly suggests that the MPG for the import compact cars is greater than for the domestic compact cars.") -> 
D38: =IF(E34="","","The test statistic was well beyond our critical value and the p-value was much smaller than our alpha and so we reject the H0 and accept the Ha.") -> 

Sheet HT Sigma NOT Known, t (an)
A1: A recent EPA study compared the highway fuel economy of domestic and imported compact cars
A2: ="A sample of "&COUNT(A9:A28)&" domestic compact cars revealed a mean of "&ROUND(AVERAGE(A9:A28),2)&" MPG with a standard deviation of "&ROUND(_xlfn.STDEV.S(A9:A28),2)&" MPG" -> A sample of 20 domestic compact cars revealed a mean of 33.83 MPG with a standard deviation of 2.33 MPG
A3: ="A sample of "&COUNT(B9:B28)&" imported compact cars revealed a mean of "&ROUND(AVERAGE(B9:B28),2)&" MPG with a standard deviation of "&ROUND(_xlfn.STDEV.S(B9:B28),2)&" MPG" -> A sample of 20 imported compact cars revealed a mean of 36.52 MPG with a standard deviation of 3.43 MPG
A4: Samples are independent, Distributions for samples are normal .
A5: At the .05 significance level can the EPA conclude that the MPG is higher on the imported cars? | G5: <
A7: Sample 1 | B7: Sample 2 | E7: Sample 1 | F7: Sample 2
A8: Domestic MPG | B8: Imported MPG | D8: Car Type | E8: Domestic MPG | F8: Imported MPG | H8: Sample 2 Formulas
A9: 35.73 | B9: 31.07 | D9: Sample Size = n = | E9: =COUNT(A9:A28) -> 20 | F9: =COUNT(B9:B28) -> 20 | H9: =IF(F9="",""," "&_xlfn.FORMULATEXT(F9)) -> =COUNT(B9:B28)
A10: 35.43 | B10: 38.71 | D10: n -1 = | E10: =E9-1 -> 19 | F10: =F9-1 -> 19 | H10: =F9-1
A11: 34.04 | B11: 34.37 | D11: Sample Mean = Xbar = | E11: =AVERAGE(A9:A28) -> 33.825 | F11: =AVERAGE(B9:B28) -> 36.5185 | G11: MPG | H11: =AVERAGE(B9:B28)
A12: 33.01 | B12: 37.47 | D12: Sample Standard Deviation = s = | E12: =_xlfn.STDEV.S(A9:A28) -> 2.3337016 | F12: =_xlfn.STDEV.S(B9:B28) -> 3.432956797 | G12: MPG | H12: =STDEV.S(B9:B28)
A13: 34.81 | B13: 40.7 | D13: Sample Variance = SVar = s^2 = | E13: =E12^2 -> 5.446163158 | F13: =F12^2 -> 11.78519237 | H13: =F12^2
A14: 34.97 | B14: 32.98 | D14: Svar/n = S^2/n = | E14: =E13/E9 -> 0.2723081579 | F14: =F13/F9 -> 0.5892596184 | H14: =F13/F9
A15: 28.35 | B15: 34.76
A16: 31.87 | B16: 40.61 | D16: Step 1: List Null and Alternative Hypotheses
A17: 34.78 | B17: 35.54 | D17: H0 : m1 - m2 | E17: >= | F17: =$E$20 -> 0
A18: 31.27 | B18: 37.78 | D18: Ha : m1 - m2 | E18: < | F18: 0
A19: 38.23 | B19: 32.47
A20: 31.11 | B20: 36 | D20: Hypothesized Pop Difference | E20: 0
A21: 33.83 | B21: 36.08
A22: 33.44 | B22: 31.15 | D22: Step 2: Pick Level of Significance = Alpha (Risk that H0 is TRUE, but we Reject it)
A23: 34.34 | B23: 37.65 | D23: Alpha | E23: 0.05 | F23: Risk that we Reject H0, even though it was TRUE (Type I Error)
A24: 38.07 | B24: 44.14
A25: 33.88 | B25: 33.81 | D25: Step 3: Sample, Calculate, Draw Picture, Calculate Test Statistic
A26: 31.58 | B26: 37.93 | D26: SE | E26: =SQRT(SUM(E14:F14)) -> 0.928206753 | G26: =IF(E26="",""," "&_xlfn.FORMULATEXT(E26)) -> =SQRT(SUM(E14:F14))
A27: 35.06 | B27: 40.66 | D27: Test Statistic = t = | E27: =(E11-F11-E20)/E26 -> -2.901831937 | G27: =IF(E27="",""," "&_xlfn.FORMULATEXT(E27)) -> =(E11-F11-E20)/E26 | J27: # of SD
A28: 32.7 | B28: 36.49 | D28: Degrees of Freedom = df = | E28: =SUM(E14:F14)^2/SUM(E14^2/E10,F14^2/F10) -> 33.47032954 | G28: =IF(E28="",""," "&_xlfn.FORMULATEXT(E28)) -> =SUM(E14:F14)^2/SUM(E14^2/E10,F14^2/F10)
D30: Step 4: Create Rules for Critical Value and p-value
D31: If Test Statistic is past our hurdle on the low end, we reject H0 and Accept Ha, Otherwise we fail to reject H0
D32: Critical Value | E32: =_xlfn.T.INV(E23,E28) -> -1.692360309 | G32: =IF(E32="",""," "&_xlfn.FORMULATEXT(E32)) -> =T.INV(E23,E28)
D33: If p-value is smaller than our Alpha, we reject H0 and accept Ha, otherwise we fail to reject H0.
D34: p-value | E34: =_xlfn.T.DIST(E27,E28,1) -> 0.003280567157 | G34: =IF(E34="",""," "&_xlfn.FORMULATEXT(E34)) -> =T.DIST(E27,E28,1)
D36: Step 5: Conclude
D37: =IF(E34="","","The statistical evidence strongly suggests that the MPG for the import compact cars is greater than for the domestic compact cars.") -> The statistical evidence strongly suggests that the MPG for the import compact cars is greater than for the domestic compact cars.
D38: =IF(E34="","","The test statistic was well beyond our critical value and the p-value was much smaller than our alpha and so we reject the H0 and accept the Ha.") -> The test statistic was well beyond our critical value and the p-value was much smaller than our alpha and so we reject the H0 and accept the Ha.
D42: t-Test: Two-Sample Assuming Unequal Variances
E44: Domestic MPG | F44: Imported MPG
D45: Mean | E45: 33.825 | F45: 36.5185
D46: Variance | E46: 5.446163158 | F46: 11.78519237
D47: Observations | E47: 20 | F47: 20
D48: Hypothesized Mean Difference | E48: 0
D49: df | E49: 33
D50: t Stat | E50: -2.901831937
D51: P(T<=t) one-tail | E51: 0.003280567157
D52: t Critical one-tail | E52: 1.692360309
D53: P(T<=t) two-tail | E53: 0.006561134314
D54: t Critical two-tail | E54: 2.034515297

Sheet HT & CI Matched Sample, t
A1: Worker | B1: Time (minutes) Making Quad Boomerang Method 1 | C1: Time (minutes) Making Quad Boomerang Method 2 | D1: Difference in Time (M1-M2) (di)
A2: 1 | B2: 12 | C2: 11 | F2: At alpha = 0.05, is there a difference in Method 1 and Method 2 for making Quads?
A3: 2 | B3: 11 | C3: 11.3
A4: 3 | B4: 13 | C4: 10.5 | F4: Step 1: List Null and Alternative Hypotheses
A5: 4 | B5: 12.2 | C5: 12 | F5: H0 : md
A6: 5 | B6: 12 | C6: 12 | F6: Ha : md
A7: 6 | B7: 13 | C7: 13.1
A8: 7 | B8: 11.2 | C8: 10.4 | F8: Mean of Differences in Population = μd = | H8: Assumes "No Difference"
A9: 8 | B9: 10.9 | C9: 10.8 | H9: Hypothesized Pop Difference
A10: 9 | B10: 12.5 | C10: 12
A11: 10 | B11: 12.4 | C11: 11.8 | F11: Step 2: Pick Level of Significance = Alpha (Risk that H0 is TRUE, but we Reject it)
F12: Alpha | H12: Risk that we Reject H0, even though it was TRUE (Type I Error)
F13: Alpha/2
F15: Step 3: Sample, Calculate, Draw Picture, Calculate Test Statistic
F16: Mean of Match Sample Differences = dbar
F17: SD of Match Sample Differences = sd
F18: Sample Size = n =
F19: Degrees of Freedom = n - 1 =
F20: SE
F21: Test Statistic = t =
F23: Step 4: Create Rules for Critical Value and p-value
F24: If Test Statistic is past our hurdle on the low end or the upper end, we reject H0 and Accept Ha, Otherwise we fail to reject H0
F25: Critical Value
F27: If p-value is smaller than our Alpha, we reject H0 and accept Ha, otherwise we fail to reject H0.
F28: p-value
F30: Step 5: Conclude
F31: =IF(G29="","","The statistical evidence does not support the conclusion that there is a difference between the two methods for making Quad Boomerangs..") -> 
F32: =IF(G29="","","The test statistic is not past our critical value and the p-value was bigger than our alpha and so we fail to reject H0.") -> 
F34: 95% Confidence Interval:
F35: Margin of Error =
F37: Upper Value
F38: Lower Value
F40: Conclude
F41: =IF(G38="","","We are 95% sure that the population difference will be between "&ROUND(G37,4)&" and "&ROUND(G38,4)&" minutes.") -> 

Sheet HT & CI Matched Sample, t (an)
A1: Worker | B1: Time (minutes) Making Quad Boomerang Method 1 | C1: Time (minutes) Making Quad Boomerang Method 2 | D1: Difference in Time (M1-M2) (di)
A2: 1 | B2: 12 | C2: 11 | D2: =B2-C2 -> 1 | F2: At alpha = 0.05, is there a difference in Method 1 and Method 2 for making Quads?
A3: 2 | B3: 11 | C3: 11.3 | D3: =B3-C3 -> -0.3
A4: 3 | B4: 13 | C4: 10.5 | D4: 2.5 | F4: Step 1: List Null and Alternative Hypotheses
A5: 4 | B5: 12.2 | C5: 12 | D5: 0.2 | F5: H0 : md | G5: = | H5: =$G$8 -> 0
A6: 5 | B6: 12 | C6: 12 | D6: 0 | F6: Ha : md | G6: <> | H6: 0
A7: 6 | B7: 13 | C7: 13.1 | D7: -0.1
A8: 7 | B8: 11.2 | C8: 10.4 | D8: 0.8 | F8: Mean of Differences in Population = μd = | G8: 0 | H8: Assumes "No Difference"
A9: 8 | B9: 10.9 | C9: 10.8 | D9: 0.1 | H9: Hypothesized Pop Difference
A10: 9 | B10: 12.5 | C10: 12 | D10: 0.5
A11: 10 | B11: 12.4 | C11: 11.8 | D11: 0.6 | F11: Step 2: Pick Level of Significance = Alpha (Risk that H0 is TRUE, but we Reject it)
F12: Alpha | G12: 0.05 | H12: Risk that we Reject H0, even though it was TRUE (Type I Error)
F13: Alpha/2 | G13: =G12/2 -> 0.025
A15: t-Test: Paired Two Sample for Means | F15: Step 3: Sample, Calculate, Draw Picture, Calculate Test Statistic
F16: Mean of Match Sample Differences = dbar | G16: =AVERAGE(D2:D11) -> 0.53
B17: Time (minutes) Making Quad Boomerang Method 1 | C17: Time (minutes) Making Quad Boomerang Method 2 | F17: SD of Match Sample Differences = sd | G17: =_xlfn.STDEV.S(D2:D11) -> 0.8056053624
A18: Mean | B18: 12.02 | C18: 11.49 | F18: Sample Size = n = | G18: =COUNT(D2:D11) -> 10
A19: Variance | B19: 0.5884444444 | C19: 0.7098888889 | F19: Degrees of Freedom = n - 1 = | G19: =G18-1 -> 9
A20: Observations | B20: 10 | C20: 10 | F20: SE | G20: =G17/SQRT(G18) -> 0.2547547841
A21: Pearson Correlation | B21: 0.5023307675 | F21: Test Statistic = t = | G21: =(G16-G8)/G20 -> 2.080431981
A22: Hypothesized Mean Difference | B22: 0
A23: df | B23: 9 | F23: Step 4: Create Rules for Critical Value and p-value
A24: t Stat | B24: 2.080431981 | F24: If Test Statistic is past our hurdle on the low end or the upper end, we reject H0 and Accept Ha, Otherwise we fail to reject H0
A25: P(T<=t) one-tail | B25: 0.03360904685 | F25: Critical Value | G25: =_xlfn.T.INV(1-G13,G19) -> 2.262157163
A26: t Critical one-tail | B26: 1.833112933 | G26: =_xlfn.T.INV.2T(G12,G19) -> 2.262157163
A27: P(T<=t) two-tail | B27: 0.06721809369 | F27: If p-value is smaller than our Alpha, we reject H0 and accept Ha, otherwise we fail to reject H0.
A28: t Critical two-tail | B28: 2.262157163 | F28: p-value | G28: =(1-_xlfn.T.DIST(G21,G19,1))*2 -> 0.06721809369
G29: =_xlfn.T.DIST.2T(G21,G19) -> 0.06721809369
F30: Step 5: Conclude
F31: =IF(G29="","","The statistical evidence does not support the conclusion that there is a difference between the two methods for making Quad Boomerangs..") -> The statistical evidence does not support the conclusion that there is a difference between the two methods for making Quad Boomerangs..
F32: =IF(G29="","","The test statistic is not past our critical value and the p-value was bigger than our alpha and so we fail to reject H0.") -> The test statistic is not past our critical value and the p-value was bigger than our alpha and so we fail to reject H0.
F34: 95% Confidence Interval:
F35: Margin of Error = | G35: =G25*G20 -> 0.5762953595
G36: =_xlfn.CONFIDENCE.T(G12,G17,G18) -> 0.5762953595
F37: Upper Value | G37: =G16+G35 -> 1.10629536
F38: Lower Value | G38: =G16-G35 -> -0.04629535951
F40: Conclude
F41: =IF(G38="","","We are 95% sure that the population difference will be between "&ROUND(G37,4)&" and "&ROUND(G38,4)&" minutes.") -> We are 95% sure that the population difference will be between 1.1063 and -0.0463 minutes.

Sheet CRD(1)
A1: 1) Rand Function:
D2: 2) Radomly Select with VLOOKUP and SMALL: | J2: 4) Rand Function:
A3: RAND | B3: Employees Making Boomerangs: | H3: 3) For Names, Paste Special Values:
A4: =RAND() -> 0.7064116653 | B4: Annette Caldwell | D4: No. | E4: Boomerang Maker | F4: Method | P4: 5) For Methods, Paste Special Values:
A5: =RAND() -> 0.9938345755 | B5: Sophia Wise | D5: 1 | E5: =VLOOKUP(SMALL($A$4:$B$103,D5),$A$4:$B$103,2,0) -> Joel Hansen | F5: Method 1 | H5: Sophia Wise | J5: RAND | K5: Method
A6: 0.4156885206 | B6: Florence Ferguson | D6: 2 | E6: Kelli Sherman | F6: Method 2 | H6: Alexandra Moran | J6: =RAND() -> 0.07911157413 | K6: Method 1 | P6: Sophia Wise | Q6: Method 4 | S6: =P6='CRD(2)'!I2 -> FALSE | T6: =Q6='CRD(2)'!J2 -> TRUE
A7: 0.4169515318 | B7: Jorge Reid | D7: 3 | E7: Kathy Dean | F7: Method 3 | H7: Herbert Garrett | J7: =RAND() -> 0.4757503853 | K7: Method 1 | P7: Alexandra Moran | Q7: Method 4 | S7: =P7='CRD(2)'!I3 -> TRUE | T7: =Q7='CRD(2)'!J3 -> TRUE
A8: 0.5731027059 | B8: Belinda Ruiz | D8: 4 | E8: Lora Patrick | F8: Method 4 | H8: Sharon Richardson | J8: 0.9049134705 | K8: Method 1 | P8: Herbert Garrett | Q8: Method 3 | S8: =P8='CRD(2)'!I4 -> TRUE | T8: =Q8='CRD(2)'!J4 -> TRUE
A9: 0.4605338804 | B9: Everett Marsh | D9: 5 | E9: Denise Farmer | F9: Method 1 | H9: Robert Valdez | J9: 0.04409890915 | K9: Method 1 | P9: Sharon Richardson | Q9: Method 4 | S9: =P9='CRD(2)'!I5 -> TRUE | T9: =Q9='CRD(2)'!J5 -> TRUE
A10: 0.07493479283 | B10: Guy Frazier | D10: 6 | E10: Marsha Gutierrez | F10: Method 2 | H10: Winifred Ortega | J10: 0.2718612898 | K10: Method 1 | P10: Robert Valdez | Q10: Method 2 | S10: =P10='CRD(2)'!I6 -> TRUE | T10: =Q10='CRD(2)'!J6 -> TRUE
A11: 0.5574139773 | B11: Angel Clayton | D11: 7 | E11: Van Simmons | F11: Method 3 | H11: Carole Sullivan | J11: 0.4544602802 | K11: Method 2 | P11: Winifred Ortega | Q11: Method 3 | S11: =P11='CRD(2)'!I7 -> TRUE | T11: =Q11='CRD(2)'!J7 -> TRUE
A12: 0.2741503293 | B12: Johnnie Zimmerman | D12: 8 | E12: Jose Goodman | F12: Method 4 | H12: Willard Payne | J12: 0.2008465139 | K12: Method 2 | P12: Carole Sullivan | Q12: Method 3 | S12: =P12='CRD(2)'!I8 -> TRUE | T12: =Q12='CRD(2)'!J8 -> TRUE
A13: 0.9828665575 | B13: Jenna Rios | D13: 9 | E13: Paula Wade | F13: Method 1 | H13: Irvin Owens | J13: 0.02115707106 | K13: Method 2 | P13: Willard Payne | Q13: Method 1 | S13: =P13='CRD(2)'!I9 -> TRUE | T13: =Q13='CRD(2)'!J9 -> TRUE
A14: 0.6658237934 | B14: Alvin Mccoy | D14: 10 | E14: Guy Frazier | F14: Method 2 | H14: Constance Henderson | J14: 0.1659484568 | K14: Method 2 | P14: Irvin Owens | Q14: Method 2 | S14: =P14='CRD(2)'!I10 -> TRUE | T14: =Q14='CRD(2)'!J10 -> TRUE
A15: 0.3707532705 | B15: Carole Sullivan | D15: 11 | E15: Glenn George | F15: Method 3 | H15: Jodi Houston | J15: 0.4274824077 | K15: Method 2 | P15: Constance Henderson | Q15: Method 2 | S15: =P15='CRD(2)'!I11 -> TRUE | T15: =Q15='CRD(2)'!J11 -> TRUE
A16: 0.3545263734 | B16: Winifred Ortega | D16: 12 | E16: Sylvia Nichols | F16: Method 4 | H16: Danny Mullins | J16: 0.907665986 | K16: Method 3 | P16: Jodi Houston | Q16: Method 1 | S16: =P16='CRD(2)'!I12 -> TRUE | T16: =Q16='CRD(2)'!J12 -> TRUE
A17: 0.9765951251 | B17: Lucas Ortiz | D17: 13 | E17: Saul Harmon | F17: Method 1 | H17: Jaime Gibson | J17: 0.5777140344 | K17: Method 3 | P17: Danny Mullins | Q17: Method 4 | S17: =P17='CRD(2)'!I13 -> TRUE | T17: =Q17='CRD(2)'!J13 -> TRUE
A18: 0.1991766182 | B18: Sharon Richardson | D18: 14 | E18: Traci Myers | F18: Method 2 | H18: Arlene Baker | J18: 0.6265050832 | K18: Method 3 | P18: Jaime Gibson | Q18: Method 2 | S18: =P18='CRD(2)'!I14 -> TRUE | T18: =Q18='CRD(2)'!J14 -> TRUE
A19: 0.04246611349 | B19: Marsha Gutierrez | D19: 15 | E19: Tracy Chambers | F19: Method 3 | H19: Guy Frazier | J19: 0.7323963559 | K19: Method 3 | P19: Arlene Baker | Q19: Method 3 | S19: =P19='CRD(2)'!I15 -> TRUE | T19: =Q19='CRD(2)'!J15 -> TRUE
A20: 0.2822241823 | B20: Jodi Houston | D20: 16 | E20: Lamar Hammond | F20: Method 4 | H20: Van Simmons | J20: 0.001677421849 | K20: Method 3 | P20: Guy Frazier | Q20: Method 1 | S20: =P20='CRD(2)'!I16 -> TRUE | T20: =Q20='CRD(2)'!J16 -> TRUE
A21: 0.1873895113 | B21: Ora Kim | D21: 17 | E21: Cheryl Ford | F21: Method 1 | H21: Floyd Erickson | J21: 0.4708183295 | K21: Method 4 | P21: Van Simmons | Q21: Method 1 | S21: =P21='CRD(2)'!I17 -> TRUE | T21: =Q21='CRD(2)'!J17 -> TRUE
A22: 0.8154051018 | B22: Loren Freeman | D22: 18 | E22: Ora Kim | F22: Method 2 | H22: Denise Farmer | J22: 0.4262642495 | K22: Method 4 | P22: Floyd Erickson | Q22: Method 1 | S22: =P22='CRD(2)'!I18 -> TRUE | T22: =Q22='CRD(2)'!J18 -> TRUE
A23: 0.9626687832 | B23: Danny Mullins | D23: 19 | E23: Herbert Garrett | F23: Method 3 | H23: Reginald Montgomery | J23: 0.572248871 | K23: Method 4 | P23: Denise Farmer | Q23: Method 4 | S23: =P23='CRD(2)'!I19 -> TRUE | T23: =Q23='CRD(2)'!J19 -> TRUE
A24: 0.7595400595 | B24: Jared Young | D24: 20 | E24: Sharon Richardson | F24: Method 4 | H24: Edwin Watkins | J24: 0.3451211723 | K24: Method 4 | P24: Reginald Montgomery | Q24: Method 3 | S24: =P24='CRD(2)'!I20 -> TRUE | T24: =Q24='CRD(2)'!J20 -> TRUE
A25: 0.5743401371 | B25: Sylvester Hodges | J25: 0.2499036003 | K25: Method 4 | P25: Edwin Watkins | Q25: Method 2 | S25: =P25='CRD(2)'!I21 -> TRUE | T25: =Q25='CRD(2)'!J21 -> TRUE
A26: 0.8740047458 | B26: Daniel Watson
A27: 0.7305207806 | B27: Nathan Beck
A28: 0.1665531011 | B28: Lamar Hammond
A29: 0.2759154539 | B29: Tommie Turner
A30: 0.8161790121 | B30: Garrett King
A31: 0.8147775005 | B31: Bradford Boone
A32: 0.5542845736 | B32: Julian Quinn
A33: 0.8546737337 | B33: Phyllis Waters
A34: 0.6743147071 | B34: Carlton Matthews
A35: 0.6689325922 | B35: Kimberly Palmer
A36: 0.7970857533 | B36: Arlene Baker
A37: 0.06424593521 | B37: Jose Goodman
A38: 0.5281343671 | B38: Floyd Erickson
A39: 0.5201551377 | B39: Faith Salazar
A40: 0.02768138076 | B40: Kathy Dean
A41: 0.9269716466 | B41: Ernestine Weaver
A42: 0.6455312951 | B42: Judy Mckenzie
A43: 0.5882347589 | B43: Nina Alvarez
A44: 0.6972667944 | B44: Irvin Owens
A45: 0.4380415189 | B45: Bernard Day
A46: 0.3374393791 | B46: Todd Rowe
A47: 0.5216500244 | B47: Abraham Park
A48: 0.7824113175 | B48: Lorraine Wilson
A49: 0.09476959344 | B49: Sylvia Nichols
A50: 0.4074896283 | B50: Moses Cooper
A51: 0.1078244683 | B51: Saul Harmon
A52: 0.2201487219 | B52: Jaime Gibson
A53: 0.5103549595 | B53: Malcolm Jefferson
A54: 0.03024256225 | B54: Denise Farmer
A55: 0.6112332182 | B55: Jasmine Manning
A56: 0.2109029591 | B56: Chester Munoz
A57: 0.468085451 | B57: Jeanette Maldonado
A58: 0.2259766694 | B58: Bernice Castillo
A59: 0.3740408172 | B59: Claire Christensen
A60: 0.925423761 | B60: Doris Luna
A61: 0.7983016862 | B61: Vivian Hubbard
A62: 0.3105088967 | B62: Harvey Grant
A63: 0.1750642276 | B63: Cheryl Ford
A64: 0.2981850906 | B64: Brandy Andrews
A65: 0.4160959942 | B65: Kerry Herrera
A66: 0.2678327002 | B66: Shelly Fuller
A67: 0.9484333199 | B67: Louis Schwartz
A68: 0.08039593204 | B68: Glenn George
A69: =RAND() -> 0.498267715 | B69: Stacey Saunders
A70: 0.6465240995 | B70: Leroy Oliver
A71: 0.6565611801 | B71: Johanna Miles
A72: 0.7097782089 | B72: Felix Cain
A73: 0.7204872249 | B73: Stella Mccarthy
A74: 0.6264897631 | B74: Alice Harris
A75: 0.03005834989 | B75: Lora Patrick
A76: 0.486435146 | B76: Marcella Morton
A77: 0.2601629308 | B77: Inez Stone
A78: 0.8979806886 | B78: Trevor Phelps
A79: 0.6306308801 | B79: Gene Lindsey
A80: 0.7576291868 | B80: Jacob Ingram
A81: 0.6064353929 | B81: Rene Bishop
A82: 0.7203783889 | B82: Robert Valdez
A83: 0.7626731191 | B83: Georgia Olson
A84: 0.05892905498 | B84: Van Simmons
A85: 0.6784766025 | B85: Reginald Montgomery
A86: 0.5000541714 | B86: Edwin Watkins
A87: 0.3345350642 | B87: Miriam Ramos
A88: 0.6050689912 | B88: Alexandra Moran
A89: 0.1553598207 | B89: Tracy Chambers
A90: 0.01410295101 | B90: Joel Hansen
A91: 0.1917914409 | B91: Herbert Garrett
A92: 0.4621544307 | B92: Julio Peterson
A93: 0.3226716909 | B93: Matthew West
A94: 0.3807225489 | B94: Sadie Hall
A95: 0.1313891465 | B95: Traci Myers
A96: 0.2550880949 | B96: Constance Henderson
A97: 0.4246423762 | B97: Thelma Howard
A98: 0.02360967923 | B98: Kelli Sherman
A99: 0.7733078964 | B99: Willard Payne
A100: 0.07107315353 | B100: Paula Wade
A101: 0.3511602014 | B101: Lynne Griffin
A102: 0.5453352715 | B102: Colin Austin
A103: 0.4203157861 | B103: Carrie Baldwin

Sheet CRD(2)
A1: Employees Making Boomerangs: | C1: From List 0f 100, randomly select 20 Workers ==> | E1: Workers | G1: Randomly Assign Manufacturing Method ==> | I1: Workers | J1: Method | L1: Time and record data ==>> | N1: Pop 1 | O1: Pop 2 | P1: Pop 3 | Q1: Pop 4
A2: Annette Caldwell | E2: Sophia Wise | I2: . | J2: Method 4 | N2: Treatment 1 | O2: Treatment 2 | P2: Treatment 3 | Q2: Treatment 4
A3: Sophia Wise | E3: Alexandra Moran | I3: Alexandra Moran | J3: Method 4 | N3: Method 1 | O3: Method 2 | P3: Method 3 | Q3: Method 4
A4: Florence Ferguson | E4: Herbert Garrett | I4: Herbert Garrett | J4: Method 3 | N4: 12.56 | O4: 11.87 | P4: 15.57 | Q4: 12.94
A5: Jorge Reid | E5: Sharon Richardson | I5: Sharon Richardson | J5: Method 4 | N5: 15.92 | O5: 12.94 | P5: 10.64 | Q5: 12.01
A6: Belinda Ruiz | E6: Robert Valdez | I6: Robert Valdez | J6: Method 2 | N6: 10.42 | O6: 11.23 | P6: 14.05 | Q6: 10.21
A7: Everett Marsh | E7: Winifred Ortega | I7: Winifred Ortega | J7: Method 3 | N7: 14.41 | O7: 15.97 | P7: 13.08 | Q7: 10.18
A8: Guy Frazier | E8: Carole Sullivan | I8: Carole Sullivan | J8: Method 3 | N8: 10.32 | O8: 17.14 | P8: 16.71 | Q8: 11.21
A9: Angel Clayton | E9: Willard Payne | I9: Willard Payne | J9: Method 1
A10: Johnnie Zimmerman | E10: Irvin Owens | I10: Irvin Owens | J10: Method 2
A11: Jenna Rios | E11: Constance Henderson | I11: Constance Henderson | J11: Method 2
A12: Alvin Mccoy | E12: Jodi Houston | I12: Jodi Houston | J12: Method 1
A13: Carole Sullivan | E13: Danny Mullins | I13: Danny Mullins | J13: Method 4
A14: Winifred Ortega | E14: Jaime Gibson | I14: Jaime Gibson | J14: Method 2
A15: Lucas Ortiz | E15: Arlene Baker | I15: Arlene Baker | J15: Method 3
A16: Sharon Richardson | E16: Guy Frazier | I16: Guy Frazier | J16: Method 1
A17: Marsha Gutierrez | E17: Van Simmons | I17: Van Simmons | J17: Method 1
A18: Jodi Houston | E18: Floyd Erickson | I18: Floyd Erickson | J18: Method 1
A19: Ora Kim | E19: Denise Farmer | I19: Denise Farmer | J19: Method 4
A20: Loren Freeman | E20: Reginald Montgomery | I20: Reginald Montgomery | J20: Method 3
A21: Danny Mullins | E21: Edwin Watkins | I21: Edwin Watkins | J21: Method 2
A22: Jared Young
A23: Sylvester Hodges
A24: Daniel Watson
A25: Nathan Beck
A26: Lamar Hammond
A27: Tommie Turner
A28: Garrett King
A29: Bradford Boone
A30: Julian Quinn
A31: Phyllis Waters
A32: Carlton Matthews
A33: Kimberly Palmer
A34: Arlene Baker
A35: Jose Goodman
A36: Floyd Erickson
A37: Faith Salazar
A38: Kathy Dean
A39: Ernestine Weaver | C39: 60 more in list below
A40: Judy Mckenzie | C40: < < < <
A41: Nina Alvarez
A42: Irvin Owens
A43: Bernard Day
A44: Todd Rowe
A45: Abraham Park
A46: Lorraine Wilson
A47: Sylvia Nichols
A48: Moses Cooper
A49: Saul Harmon
A50: Jaime Gibson
A51: Malcolm Jefferson
A52: Denise Farmer
A53: Jasmine Manning
A54: Chester Munoz
A55: Jeanette Maldonado
A56: Bernice Castillo
A57: Claire Christensen
A58: Doris Luna
A59: Vivian Hubbard
A60: Harvey Grant
A61: Cheryl Ford
A62: Brandy Andrews
A63: Kerry Herrera
A64: Shelly Fuller
A65: Louis Schwartz
A66: Glenn George
A67: Stacey Saunders
A68: Leroy Oliver
A69: Johanna Miles
A70: Felix Cain
A71: Stella Mccarthy
A72: Alice Harris
A73: Lora Patrick
A74: Marcella Morton
A75: Inez Stone
A76: Trevor Phelps
A77: Gene Lindsey
A78: Jacob Ingram
A79: Rene Bishop
A80: Robert Valdez
A81: Georgia Olson
A82: Van Simmons
A83: Reginald Montgomery
A84: Edwin Watkins
A85: Miriam Ramos
A86: Alexandra Moran
A87: Tracy Chambers
A88: Joel Hansen
A89: Herbert Garrett
A90: Julio Peterson
A91: Matthew West
A92: Sadie Hall
A93: Traci Myers
A94: Constance Henderson
A95: Thelma Howard
A96: Kelli Sherman
A97: Willard Payne
A98: Paula Wade
A99: Lynne Griffin
A100: Colin Austin
A101: Carrie Baldwin

Sheet ANOVA-Long
A1: H0 : µ1 = µ2 = µ3 = µ4
A2: Ha = Not all population means are the same (at leat two are different)
A3: Decision Rule: p-value < alpha, Reject H0 & Acceot Ha or Test Ststistic F > Critical F, Reject H0 & Accept Ha
B5: Population 1 | C5: Population 2 | D5: Population 3 | E5: Population 4 | G5: Calculations for Total Variance for All Observations =
B6: Treatment 1 | C6: Treatment 2 | D6: Treatment 3 | E6: Treatment 4 | H6: Population 1 | I6: Population 2 | J6: Population 3 | K6: Population 4
B7: Method 1 | C7: Method 2 | D7: Method 3 | E7: Method 4 | H7: Treatment 1 | I7: Treatment 2 | J7: Treatment 3 | K7: Treatment 4
B8: 12.56 | C8: 11.87 | D8: 15.57 | E8: 12.94 | H8: Method 1 | I8: Method 2 | J8: Method 3 | K8: Method 4
B9: 15.92 | C9: 12.94 | D9: 10.64 | E9: 12.01
B10: 10.42 | C10: 11.23 | D10: 14.05 | E10: 10.21
B11: 14.41 | C11: 15.97 | D11: 13.08 | E11: 10.18
B12: 10.32 | C12: 17.14 | D12: 16.71 | E12: 11.21
A13: Sample Size = n =
A14: Sample Mean = Xbar =
A15: Sample Variance = s2 = | G15: Sum of Squares Total = SST =
G16: dfT = | I16: **Observations - # Samples
A17: Grand Over All Count = nT =
A18: Grand Over All Sample Mean = XbarG = | G18: Calculations for Variance Between Treatments =
A19: # Treatments = k = | H19: Population 1 | I19: Population 2 | J19: Population 3 | K19: Population 4
H20: Treatment 1 | I20: Treatment 2 | J20: Treatment 3 | K20: Treatment 4
A21: Estimate of Variance Bewteen Treatments = MSTR = SSTR/dfTR | H21: Method 1 | I21: Method 2 | J21: Method 3 | K21: Method 4
A22: Estimate of Variance Within Treatments = MSE = SSE/dfE | G22: Deviations Square
A23: F Test Statistic = MSTR/MSE = | G23: Total Deviations Squared
A24: Alpha =
A25: p-value = | G25: Sum of Squares of Treatments = SSTR = | I25: Sum of Squares for Treatments = SSTR
A26: F Critical | G26: dfTR = | I26: **Observations - # Samples
A28: Because the F Calculated Test Statistic is not past our F Critical, We Fail To Reject H0.
A29: It seems reasonable to assume that the pop means are the same. | G29: Calculations for Variance Within Treatments =
A30: It seems reasonable to assume that there is no significant difference | H30: Population 1 | I30: Population 2 | J30: Population 3 | K30: Population 4
H31: Treatment 1 | I31: Treatment 2 | J31: Treatment 3 | K31: Treatment 4
H32: Method 1 | I32: Method 2 | J32: Method 3 | K32: Method 4
G38: Total Deviations Squared
G40: Sum of Squares Error = SSE =
G41: dfE = | I41: **Observations - # Samples

Sheet ANOVA-Long (an)
A1: H0 : µ1 = µ2 = µ3 = µ4
A2: Ha = Not all population means are the same (at leat two are different)
A3: Decision Rule: p-value < alpha, Reject H0 & Acceot Ha or Test Ststistic F > Critical F, Reject H0 & Accept Ha
B5: Population 1 | C5: Population 2 | D5: Population 3 | E5: Population 4 | G5: Calculations for Total Variance for All Observations =
B6: Treatment 1 | C6: Treatment 2 | D6: Treatment 3 | E6: Treatment 4 | H6: Population 1 | I6: Population 2 | J6: Population 3 | K6: Population 4
B7: Method 1 | C7: Method 2 | D7: Method 3 | E7: Method 4 | H7: Treatment 1 | I7: Treatment 2 | J7: Treatment 3 | K7: Treatment 4
B8: 12.56 | C8: 11.87 | D8: 15.57 | E8: 12.94 | H8: Method 1 | I8: Method 2 | J8: Method 3 | K8: Method 4
B9: 15.92 | C9: 12.94 | D9: 10.64 | E9: 12.01 | H9: =(B8-$B$18)^2 -> 0.167281 | I9: =(C8-$B$18)^2 -> 1.207801 | J9: 6.765201 | K9: 0.000841
B10: 10.42 | C10: 11.23 | D10: 14.05 | E10: 10.21 | H10: =(B9-$B$18)^2 -> 8.708401 | I10: 0.000841 | J10: 5.424241 | K10: 0.919681
B11: 14.41 | C11: 15.97 | D11: 13.08 | E11: 10.18 | H11: 6.497401 | I11: =(C10-$B$18)^2 -> 3.024121 | J11: 1.168561 | K11: 7.612081
B12: 10.32 | C12: 17.14 | D12: 16.71 | E12: 11.21 | H12: 2.076481 | I12: 9.006001 | J12: 0.012321 | K12: 7.778521
A13: Sample Size = n = | B13: =COUNT(B8:B12) -> 5 | C13: =COUNT(C8:C12) -> 5 | D13: 5 | E13: 5 | H13: 7.017201 | I13: 17.397241 | J13: 13.995081 | K13: 3.094081
A14: Sample Mean = Xbar = | B14: =AVERAGE(B8:B12) -> 12.726 | C14: =AVERAGE(C8:C12) -> 13.83 | D14: 14.01 | E14: 11.31
A15: Sample Variance = s2 = | B15: =_xlfn.VAR.S(B8:B12) -> 6.04288 | C15: =_xlfn.VAR.S(C8:C12) -> 6.73235 | D15: 5.48675 | E15: 1.41095 | G15: Sum of Squares Total = SST = | H15: =SUM(H9:K13) -> 101.87338 | I15: =H25+H40 -> 101.87338
G16: dfT = | H16: =B17-1 -> 19 | I16: **Observations - # Samples
A17: Grand Over All Count = nT = | B17: =COUNT(B8:E12) -> 20 | H17: =_xlfn.VAR.S(B8:E12) -> 5.361756842 | I17: =H15/H16 -> 5.361756842
A18: Grand Over All Sample Mean = XbarG = | B18: =AVERAGE(B8:E12) -> 12.969 | C18: =SUMPRODUCT(B14:E14,B13:E13)/SUM(B13:E13) -> 12.969 | G18: Calculations for Variance Between Treatments =
A19: # Treatments = k = | B19: =COUNTA(B7:E7) -> 4 | H19: Population 1 | I19: Population 2 | J19: Population 3 | K19: Population 4
H20: Treatment 1 | I20: Treatment 2 | J20: Treatment 3 | K20: Treatment 4
A21: Estimate of Variance Bewteen Treatments = MSTR = SSTR/dfTR | B21: =H25/H26 -> 7.72722 | H21: Method 1 | I21: Method 2 | J21: Method 3 | K21: Method 4
A22: Estimate of Variance Within Treatments = MSE = SSE/dfE | B22: =H40/H41 -> 4.9182325 | G22: Deviations Square | H22: =(B14-$B$18)^2 -> 0.059049 | I22: =(C14-$B$18)^2 -> 0.741321 | J22: 1.083681 | K22: 2.752281
A23: F Test Statistic = MSTR/MSE = | B23: =B21/B22 -> 1.571137599 | G23: Total Deviations Squared | H23: =H22*B13 -> 0.295245 | I23: =I22*C13 -> 3.706605 | J23: 5.418405 | K23: 13.761405
A24: Alpha = | B24: 0.05
A25: p-value = | B25: =_xlfn.F.DIST.RT(B23,H26,H41) -> 0.2352958451 | G25: Sum of Squares of Treatments = SSTR = | H25: =SUM(H23:K23) -> 23.18166 | I25: Sum of Squares for Treatments = SSTR
A26: F Critical | B26: =_xlfn.F.INV.RT(B24,H26,H41) -> 3.238871517 | G26: dfTR = | H26: =B19-1 -> 3 | I26: **Observations - # Samples
A28: Because the F Calculated Test Statistic is not past our F Critical, We Fail To Reject H0.
A29: It seems reasonable to assume that the pop means are the same. | G29: Calculations for Variance Within Treatments =
A30: It seems reasonable to assume that there is no significant difference | H30: Population 1 | I30: Population 2 | J30: Population 3 | K30: Population 4
H31: Treatment 1 | I31: Treatment 2 | J31: Treatment 3 | K31: Treatment 4
H32: Method 1 | I32: Method 2 | J32: Method 3 | K32: Method 4
H33: =(B8-$B$14)^2 -> 0.027556 | I33: =(C8-$C$14)^2 -> 3.8416 | J33: =(D8-$D$14)^2 -> 2.4336 | K33: =(E8-$E$14)^2 -> 2.6569
H34: =(B9-$B$14)^2 -> 10.201636 | I34: =(C9-$C$14)^2 -> 0.7921 | J34: =(D9-$D$14)^2 -> 11.3569 | K34: =(E9-$E$14)^2 -> 0.49
H35: 5.317636 | I35: 6.76 | J35: 0.0016 | K35: 1.21
H36: 2.835856 | I36: 4.5796 | J36: 0.8649 | K36: 1.2769
H37: 5.788836 | I37: 10.9561 | J37: 7.29 | K37: 0.01
G38: Total Deviations Squared | H38: =SUM(H33:H37) -> 24.17152 | I38: =SUM(I33:I37) -> 26.9294 | J38: 21.947 | K38: 5.6438
G40: Sum of Squares Error = SSE = | H40: =SUM(H38:K38) -> 78.69172
G41: dfE = | H41: =B17-B19 -> 16 | I41: **Observations - # Samples

Sheet ANOVA-Short
A1: H0 : µ1 = µ2 = µ3 = µ4
A2: Ha = Not all population means are the same (at least two are different)
A3: Decision Rule: p-value < alpha, Reject H0 & Accept Ha or Test Statistic F > Critical F, Reject H0 & Accept Ha, otherwise we fail to Reject H0
B5: Population 1 | C5: Population 2 | D5: Population 3 | E5: Population 4
B6: Treatment 1 | C6: Treatment 2 | D6: Treatment 3 | E6: Treatment 4
B7: Method 1 | C7: Method 2 | D7: Method 3 | E7: Method 4
B8: 12.56 | C8: 11.87 | D8: 15.57 | E8: 12.94
B9: 15.92 | C9: 12.94 | D9: 10.64 | E9: 12.01
B10: 10.42 | C10: 11.23 | D10: 14.05 | E10: 10.21
B11: 14.41 | C11: 15.97 | D11: 13.08 | E11: 10.18
B12: 10.32 | C12: 17.14 | D12: 16.71 | E12: 11.21
A13: Sample Size = n = | B13: =COUNT(B8:B12) -> 5 | C13: =COUNT(C8:C12) -> 5 | D13: 5 | E13: 5
A14: Sample Mean = Xbar = | B14: =AVERAGE(B8:B12) -> 12.726 | C14: =AVERAGE(C8:C12) -> 13.83 | D14: 14.01 | E14: 11.31
A15: Sample Variance = s2 = | B15: =_xlfn.VAR.S(B8:B12) -> 6.04288 | C15: =_xlfn.VAR.S(C8:C12) -> 6.73235 | D15: 5.48675 | E15: 1.41095
A17: Grand Over All Count = nT = | B17: =COUNT(B8:E12) -> 20
A18: Grand Over All Sample Mean = XbarG = | B18: =AVERAGE(B8:E12) -> 12.969 | C18: Check: | D18: =SUMPRODUCT(B14:E14,B13:E13)/SUM(B13:E13) -> 12.969
A19: # Treatments = k = | B19: =COUNTA(B7:E7) -> 4
A20: Calculations for Total Variance for All Observations =
A21: Sum of Squares Total = SST = | C21: Check:
A22: dfT =
A23: Calculations for Variance Between Treatments =
A24: Sum of Squares of Treatments = SSTR =
A25: dfTR =
A26: Estimate of Variance Between Treatments = MSTR = SSTR/dfTR
A27: Calculations for Variance Within Treatments =
A28: Sum of Squares Error = SSE = | C28: Check:
A29: dfE =
A30: Estimate of Variance Within Treatments = MSE = SSE/dfE
A31: F Test Statistic = MSTR/MSE =
A32: Alpha =
A33: p-value =
A34: F Critical
A36: Because the F Calculated Test Statistic is not past our F Critical, We Fail To Reject H0.
A37: It seems reasonable to assume that the pop means are the same.
A38: It seems reasonable to assume that there is no significant difference

Sheet ANOVA-Short (an)
A1: H0 : µ1 = µ2 = µ3 = µ4
A2: Ha = Not all population means are the same (at least two are different)
A3: Decision Rule: p-value < alpha, Reject H0 & Accept Ha or Test Statistic F > Critical F, Reject H0 & Accept Ha, otherwise we fail to Reject H0
B5: Population 1 | C5: Population 2 | D5: Population 3 | E5: Population 4
B6: Treatment 1 | C6: Treatment 2 | D6: Treatment 3 | E6: Treatment 4
B7: Method 1 | C7: Method 2 | D7: Method 3 | E7: Method 4
B8: 12.56 | C8: 11.87 | D8: 15.57 | E8: 12.94
B9: 15.92 | C9: 12.94 | D9: 10.64 | E9: 12.01
B10: 10.42 | C10: 11.23 | D10: 14.05 | E10: 10.21
B11: 14.41 | C11: 15.97 | D11: 13.08 | E11: 10.18
B12: 10.32 | C12: 17.14 | D12: 16.71 | E12: 11.21
A13: Sample Size = n = | B13: =COUNT(B8:B12) -> 5 | C13: =COUNT(C8:C12) -> 5 | D13: 5 | E13: 5
A14: Sample Mean = Xbar = | B14: =AVERAGE(B8:B12) -> 12.726 | C14: =AVERAGE(C8:C12) -> 13.83 | D14: 14.01 | E14: 11.31
A15: Sample Variance = s2 = | B15: =_xlfn.VAR.S(B8:B12) -> 6.04288 | C15: =_xlfn.VAR.S(C8:C12) -> 6.73235 | D15: 5.48675 | E15: 1.41095
A17: Grand Over All Count = nT = | B17: =COUNT(B8:E12) -> 20
A18: Grand Over All Sample Mean = XbarG = | B18: =AVERAGE(B8:E12) -> 12.969 | C18: Check: | D18: =SUMPRODUCT(B14:E14,B13:E13)/SUM(B13:E13) -> 12.969
A19: # Treatments = k = | B19: =COUNTA(B7:E7) -> 4
A20: Calculations for Total Variance for All Observations =
A21: Sum of Squares Total = SST = | B21: =SUMPRODUCT((B8:E12-B18)^2) -> 101.87338 | C21: Check: | D21: =B24+B28 -> 101.87338 | E21: =_xlfn.VAR.P(B8:E12)*B17 -> 101.87338
A22: dfT = | B22: =B17-1 -> 19
A23: Calculations for Variance Between Treatments =
A24: Sum of Squares of Treatments = SSTR = | B24: =SUMPRODUCT((B14:E14-B18)^2,B13:E13) -> 23.18166
A25: dfTR = | B25: =B19-1 -> 3
A26: Estimate of Variance Between Treatments = MSTR = SSTR/dfTR | B26: =B24/B25 -> 7.72722
A27: Calculations for Variance Within Treatments =
A28: Sum of Squares Error = SSE = | B28: =SUMPRODUCT((B8:E12-B14:E14)^2) -> 78.69172 | C28: Check: | D28: =SUMPRODUCT(B15:E15,B13:E13-1) -> 78.69172
A29: dfE = | B29: =B17-B19 -> 16
A30: Estimate of Variance Within Treatments = MSE = SSE/dfE | B30: =B28/B29 -> 4.9182325
A31: F Test Statistic = MSTR/MSE = | B31: =B26/B30 -> 1.571137599
A32: Alpha = | B32: 0.05
A33: p-value = | B33: =_xlfn.F.DIST.RT(B31,B25,B29) -> 0.2352958451
A34: F Critical | B34: =_xlfn.F.INV.RT(B32,B25,B29) -> 3.238871517
A36: Because the F Calculated Test Statistic is not past our F Critical, We Fail To Reject H0.
A37: It seems reasonable to assume that the pop means are the same.
A38: It seems reasonable to assume that there is no significant difference

Sheet Formulas
B5: Population 1 | C5: Population 2 | D5: Population 3 | E5: Population 4
B6: Treatment 1 | C6: Treatment 2 | D6: Treatment 3 | E6: Treatment 4
B7: Method 1 | C7: Method 2 | D7: Method 3 | E7: Method 4
B8: 12.56 | C8: 11.87 | D8: 15.57 | E8: 12.94
B9: 15.92 | C9: 12.94 | D9: 10.64 | E9: 12.01
B10: 10.42 | C10: 11.23 | D10: 14.05 | E10: 10.21
B11: 14.41 | C11: 15.97 | D11: 13.08 | E11: 10.18
B12: 10.32 | C12: 17.14 | D12: 16.71 | E12: 11.21
A13: Sample Size = n = | B13: =COUNT(B8:B12) -> 5 | C13: 5 | D13: 5 | E13: 5
A14: Sample Mean = Xbar = | B14: =AVERAGE(B8:B12) -> 12.726 | C14: 13.83 | D14: 14.01 | E14: 11.31
A15: Sample Variance = s2 = | B15: =_xlfn.VAR.S(B8:B12) -> 6.04288 | C15: 6.73235 | D15: 5.48675 | E15: 1.41095
A17: Grand Over All Count = nT = | B17: =COUNT(B8:E12) -> 20
A18: Grand Over All Sample Mean = XbarG = | B18: =AVERAGE(B8:E12) -> 12.969 | C18: Check: | D18: =SUMPRODUCT(B13:E13,B14:E14)/SUM(B13:E13) -> 12.969
A19: # Treatments = k = | B19: =COUNTA(B7:E7) -> 4
A20: Calculations for Total Variance for All Observations =
A21: Sum of Squares Total = SST = | B21: =SUMPRODUCT((B8:E12-B18)^2) -> 101.87338 | C21: Check: | D21: =B24+B28 -> 101.87338 | E21: =_xlfn.VAR.P(B8:E12)*B17 -> 101.87338
A22: dfT = | B22: =B17-1 -> 19
A23: Calculations for Variance Between Treatments =
A24: Sum of Squares of Treatments = SSTR = | B24: =SUMPRODUCT((B14:E14-B18)^2,B13:E13) -> 23.18166
A25: dfTR = | B25: =B19-1 -> 3
A26: Estimate of Variance Between Treatments = MSTR = SSTR/dfTR | B26: =B24/B25 -> 7.72722
A27: Calculations for Variance Within Treatments =
A28: Sum of Squares Error = SSE = | B28: =SUMPRODUCT(B15:E15,B13:E13-1) -> 78.69172 | C28: Check: | D28: =SUMPRODUCT((B8:E12-B14:E14)^2) -> 78.69172
A29: dfE = | B29: =B17-B19 -> 16
A30: Estimate of Variance Within Treatments = MSE = SSE/dfE | B30: =B28/B29 -> 4.9182325
A31: F Test Statistic = MSTR/MSE = | B31: =B26/B30 -> 1.571137599
A32: Alpha = | B32: 0.05
A33: p-value = | B33: =_xlfn.F.DIST.RT(B31,B25,B29) -> 0.2352958451
A34: F Critical | B34: =_xlfn.F.INV.RT(B32,B25,B29) -> 3.238871517

Sheet ANOVA-Data Analysis
A1: H0 : µ1 = µ2 = µ3 = µ4
A2: Ha = Not all population means are the same (at least two are different)
A3: Decision Rule: p-value < alpha, Reject H0 & Accept Ha or Test Statistic F > Critical F, Reject H0 & Accept Ha, otherwise we fail to Reject H0
B5: Population 1 | C5: Population 2 | D5: Population 3 | E5: Population 4 | H5: Because our p-value is larger than alpha, We Fail To Reject H0. It seems reasonable to assume that the pop means are the same.
B6: Treatment 1 | C6: Treatment 2 | D6: Treatment 3 | E6: Treatment 4 | H6: It seems reasonable to assume that there is no significant difference
B7: Method 1 | C7: Method 2 | D7: Method 3 | E7: Method 4
B8: 12.56 | C8: 11.87 | D8: 15.57 | E8: 12.94
B9: 15.92 | C9: 12.94 | D9: 10.64 | E9: 12.01
B10: 10.42 | C10: 11.23 | D10: 14.05 | E10: 10.21
B11: 14.41 | C11: 15.97 | D11: 13.08 | E11: 10.18
B12: 10.32 | C12: 17.14 | D12: 16.71 | E12: 11.21

Sheet ANOVA-Data Analysis (an)
A1: H0 : µ1 = µ2 = µ3 = µ4
A2: Ha = Not all population means are the same (at least two are different)
A3: Decision Rule: p-value < alpha, Reject H0 & Accept Ha or Test Statistic F > Critical F, Reject H0 & Accept Ha, otherwise we fail to Reject H0
B5: Population 1 | C5: Population 2 | D5: Population 3 | E5: Population 4
B6: Treatment 1 | C6: Treatment 2 | D6: Treatment 3 | E6: Treatment 4
B7: Method 1 | C7: Method 2 | D7: Method 3 | E7: Method 4
B8: 12.56 | C8: 11.87 | D8: 15.57 | E8: 12.94
B9: 15.92 | C9: 12.94 | D9: 10.64 | E9: 12.01
B10: 10.42 | C10: 11.23 | D10: 14.05 | E10: 10.21
B11: 14.41 | C11: 15.97 | D11: 13.08 | E11: 10.18
B12: 10.32 | C12: 17.14 | D12: 16.71 | E12: 11.21
A15: Anova: Single Factor
A17: SUMMARY
A18: Groups | B18: Count | C18: Sum | D18: Average | E18: Variance
A19: Method 1 | B19: 5 | C19: 63.63 | D19: 12.726 | E19: 6.04288
A20: Method 2 | B20: 5 | C20: 69.15 | D20: 13.83 | E20: 6.73235
A21: Method 3 | B21: 5 | C21: 70.05 | D21: 14.01 | E21: 5.48675
A22: Method 4 | B22: 5 | C22: 56.55 | D22: 11.31 | E22: 1.41095
A25: ANOVA
A26: Source of Variation | B26: SS | C26: df | D26: MS | E26: F | F26: P-value | G26: F crit
A27: Between Groups | B27: 23.18166 | C27: 3 | D27: 7.72722 | E27: 1.571137599 | F27: 0.2352958451 | G27: 3.238871517
A28: Within Groups | B28: 78.69172 | C28: 16 | D28: 4.9182325
A30: Total | B30: 101.87338 | C30: 19
A33: Because our p-value is larger than alpha, We Fail To Reject H0. It seems reasonable to assume that the pop means are the same.
A34: It seems reasonable to assume that there is no significant difference

Sheet ANOVA(2)
A1: Students rate a professor either: Excellent, Good, Par, Below Par
A2: Ratings = Factor = Independent Variable
A3: Ratings = Treatments = Populations
A4: Student's grades are matched up with Rating
A5: Class grades = Response Variable
A6: Students = Experimental Units
A8: Null and Alternative Hypothesis:
A9: H0 : µ1 = µ2 = … = µk
A10: Ha : Not all population means are equal
A11: "at least two mean are not equal"
A12: Alpha = | B12: 0.01
B14: Class Grades
B15: Excellent | C15: Good | D15: Par | E15: Below Par
B16: 94 | C16: 75 | D16: 70 | E16: 68
B17: 90 | C17: 68 | D17: 73 | E17: 70
B18: 85 | C18: 77 | D18: 76 | E18: 72
B19: 80 | C19: 83 | D19: 78 | E19: 65
C20: 88 | D20: 80 | E20: 74
D21: 68 | E21: 65
D22: 65
A23: Sample Size = n = | B23: =COUNT(B16:B22) -> 4 | C23: 5 | D23: 7 | E23: 6 | I23: Inference about pairs of Treatment Means
A24: Sample Mean = Xbar = | B24: =AVERAGE(B16:B22) -> 87.25 | C24: 78.2 | D24: 72.85714286 | E24: 69
A25: Sample Variance = S2 = | B25: =_xlfn.VAR.S(B16:B22) -> 36.91666667 | C25: 58.7 | D25: 30.14285714 | E25: 13.6 | I25: Alpha | J25: 0.05
A26: Sample SD = s = | B26: =SQRT(B25) -> 6.075908711 | C26: 7.661592524 | D26: 5.4902511 | E26: 3.687817783 | I26: Alpha/2 | J26: =J25/2 -> 0.025
A27: Sample Variance = S2 = | B27: =SUMPRODUCT((B16:B19-B24)^2)/(B23-1) -> 36.91666667 | C27: =SUMPRODUCT((C16:C20-C24)^2)/(C23-1) -> 58.7 | D27: =SUMPRODUCT((D16:D22-D24)^2)/(D23-1) -> 30.14285714 | E27: =SUMPRODUCT((E16:E21-E24)^2)/(E23-1) -> 13.6 | I27: t | J27: =_xlfn.T.INV(1-J26,C35) -> 2.10092204
I28: XbarE - XbarBP | J28: =B24-E24 -> 18.25
A29: # Treatments = k = | B29: =COUNTA(B15:E15) -> 4 | I29: Margin of Error = t*SQRT(MSE*(1/n+1/n2))
A30: Grand Overall Sample Size = nT = | B30: =COUNT(B16:E22) -> 22 | J30: =J27*SQRT(D35*(1/B23+1/E23)) -> 7.79309685
A31: Grand Overall Sample Mean = XbarG = | B31: =AVERAGE(B16:E22) -> 75.63636364 | C31: =SUMPRODUCT(B24:E24,B23:E23)/SUM(B23:E23) -> 75.63636364 | I31: Lower Limit | J31: =J28-J30 -> 10.45690315
D32: 2 estimates of variance | I32: Upper Limit | J32: =J28+J30 -> 26.04309685
A33: Source of Variation | B33: Sum of Squares | C33: Degrees of Freedom | D33: Mean Square | E33: F | F33: p-value | G33: F Critical | I33: Since 0 is not in interval, it seems reasonable that there is a difference.
A34: Treatments (Between Group) | B34: =SUMPRODUCT(B23:E23,(B24:E24-B31)^2) -> 890.6837662 | C34: =B29-1 -> 3 | D34: =B34/C34 -> 296.8945887 | E34: =D34/D35 -> 8.990643302 | F34: =_xlfn.F.DIST.RT(E34,C34,C35) -> 0.0007427688985 | G34: =_xlfn.F.INV.RT(B12,C34,C35) -> 5.09188952
A35: Error (Within Group) | B35: =SUMPRODUCT(B25:E25,B23:E23-1) -> 594.4071429 | C35: =B30-B29 -> 18 | D35: 33.02261905
A36: Total | B36: =SUMPRODUCT(--ISNUMBER(B16:E22),(B16:E22-B31)^2) -> 1485.090909 | C36: =B30-1 -> 21 | D36: 70.71861472
D38: =_xlfn.VAR.S(B16:E22) -> 70.71861472
B39: =SUMPRODUCT(--ISNUMBER(B16:E22),(B16:E22-B24:E24)^2) -> 594.4071429
B40: =B34+B35 -> 1485.090909
A43: Anova: Single Factor
A45: SUMMARY
A46: Groups | B46: Count | C46: Sum | D46: Average | E46: Variance
A47: Excellent | B47: 4 | C47: 349 | D47: 87.25 | E47: 36.91666667
A48: Good | B48: 5 | C48: 391 | D48: 78.2 | E48: 58.7
A49: Par | B49: 7 | C49: 510 | D49: 72.85714286 | E49: 30.14285714
A50: Below Par | B50: 6 | C50: 414 | D50: 69 | E50: 13.6
A53: ANOVA
A54: Source of Variation | B54: SS | C54: df | D54: MS | E54: F | F54: P-value | G54: F crit
A55: Between Groups | B55: 890.6837662 | C55: 3 | D55: 296.8945887 | E55: 8.990643302 | F55: 0.0007427688985 | G55: 5.09188952
A56: Within Groups | B56: 594.4071429 | C56: 18 | D56: 33.02261905
A58: Total | B58: 1485.090909 | C58: 21

Sheet ANOVA(3)
A1: 3 Paints advertised as having the same dry time (until ready to apply second coat)
A2: We want to check Manufacturer's claim
A3: 5 random samples of each paint are taken (5 cans of each paint)
A4: Dry times in minutes
B5: Group 1 | C5: Group 2 | D5: Group 3
B6: Population 1 | C6: Population 2 | D6: Population 3
B7: Treatment 1 | C7: Treatment 2 | D7: Treatment 3
B8: Paint 1 Time (Mins) | C8: Paint 2 Time (Mins) | D8: Paint 3 Time (Mins) | F8: Source of Variation | G8: Names | H8: Sum of Squares | I8: Degrees of Freedom | J8: Names | K8: Mean Square | L8: F | M8: p-value | N8: F Critical
B9: 131 | C9: 147 | D9: 153 | F9: Treatment (Between Groups) | G9: SSTR | H9: =SUMPRODUCT(B14:D14,(B15:D15-B18)^2) -> 270.5333333 | I9: =B20-1 -> 2 | J9: MSTR | K9: =H9/I9 -> 135.2666667 | L9: =K9/K10 -> 2.979441997 | M9: =_xlfn.F.DIST.RT(L9,I9,I10) -> 0.08900438539 | N9: =_xlfn.F.INV.RT(G20,I9,I10) -> 3.885293835
B10: 140 | C10: 136 | D10: 145 | F10: Error (Within Groups) | G10: SSE | H10: =SUMPRODUCT(B16:D16,B14:D14-1) -> 544.8 | I10: =B19-B20 -> 12 | J10: MSE | K10: =H10/I10 -> 45.4
B11: 138 | C11: 145 | D11: 138 | F11: Total Variation | G11: SSTR | H11: =SUMPRODUCT((B9:D13-B18)^2) -> 815.3333333 | I11: =B19-1 -> 14 | J11: VAR.S | K11: =H11/I11 -> 58.23809524
B12: 129 | C12: 148 | D12: 143
B13: 144 | C13: 133 | D13: 155 | H13: Check: | K13: Check:
A14: Count = n = | B14: =COUNT(B9:B13) -> 5 | C14: =COUNT(C9:C13) -> 5 | D14: =COUNT(D9:D13) -> 5 | H14: =SUMPRODUCT((B9:D13-B15:D15)^2) -> 544.8
A15: Mean = Xbar = | B15: =AVERAGE(B9:B13) -> 136.4 | C15: =AVERAGE(C9:C13) -> 141.8 | D15: =AVERAGE(D9:D13) -> 146.8 | H15: =H9+H10 -> 815.3333333 | K15: =_xlfn.VAR.S(B9:D13) -> 58.23809524
A16: Sample Var = s2 = | B16: =SUMPRODUCT((B9:B13-B15)^2)/(B14-1) -> 39.3 | C16: =SUMPRODUCT((C9:C13-C15)^2)/(C14-1) -> 46.7 | D16: =SUMPRODUCT((D9:D13-D15)^2)/(D14-1) -> 50.2
F17: Is Mean Dry time the same for each type of paint?
A18: Grand Overall Sample Mean = | B18: =AVERAGE(B9:D13) -> 141.6666667 | C18: =SUMPRODUCT(B15:D15,B14:D14)/SUM(B14:D14) -> 141.6666667 | F18: H0 : m1 = m2 = m3 = m4
A19: Grand Overall Count = | B19: =COUNT(B9:D13) -> 15 | F19: Ha : All means are not the same
A20: # of Treantments/Populations = k = | B20: =COUNTA(B8:D8) -> 3 | F20: Alpha = | G20: 0.05
F21: Because p-value greater than alpha, we fail to reject. The sample evidemnce does not support the conclusion that there is a difference in dry times.
B22: 3
F24: Anova: Single Factor
F26: SUMMARY
F27: Groups | G27: Count | H27: Sum | I27: Average | J27: Variance
F28: Paint 1 | G28: 5 | H28: 682 | I28: 136.4 | J28: 39.3
F29: Paint 2 | G29: 5 | H29: 709 | I29: 141.8 | J29: 46.7
F30: Paint 3 | G30: 5 | H30: 734 | I30: 146.8 | J30: 50.2
F33: ANOVA
F34: Source of Variation | G34: SS | H34: df | I34: MS | J34: F | K34: P-value | L34: F crit
F35: Between Groups | G35: 270.5333333 | H35: 2 | I35: 135.2666667 | J35: 2.979441997 | K35: 0.08900438539 | L35: 3.885293835
F36: Within Groups | G36: 544.8 | H36: 12 | I36: 45.4
F38: Total | G38: 815.3333333 | H38: 14
